{"text_format":"1","workbook":"xlsx","n_sheets":6,"sheets":["Kunden","AB_norm","RG_autom","RGdates","RG_KD","DATEN"],"not_rendered":{"charts":0,"images":1,"macros":1,"external_links":0,"defined_names":14,"comments":0,"pivot_tables":0},"unopened":[],"bounds":{"document_bytes":16777216,"sheet_cells":100000,"rows_first":2000,"rows_last":500,"rows_between":2000,"halvings":0,"cell_chars":16384,"cell_head_chars":4096},"cells_cut":0,"cells_raw":0,"read":"whole","date_system":"1900"}

{"sheet":"Kunden","index":0,"n_rows":333,"n_cols":26,"rows_kept":333,"cut":false,"hidden":false,"merged":[]}
[null,null,null,null,null,null,null,null,null,null,null,null,null,null,null,null,null,null,"1-4 (jede, alle 2, 3, 4)"]
[]
[]
[]
[1,2,3,4,5,6,7,8,9,10,11,12,13,14,15,16,17,18,19,20,21,22,23,24,25,26]
[]
["Kde-Nr.","Abo-Nr.-Alt","Status","UUB Privat","Firmenname-Lief","Strasse-Lief","PLZ Ort - Lief","Firmenname-RG","Strasse-RG","PLZ Ort - RG","Kontaktperson","E-Mail Kontakt","E-Mail für Rechnung","Zahlungsfrist","Telefon","Öffnungszeiten","Bemerkung","Boxen","Rhytm","Rhytm_Text","Liefertag","nächste Lieferung","Ferien","Spedi","Logo entfernen","Ersatzfeld"]
["K0011",20220011,"2_Abo_aktiv","UUB","Kde1","Str1","5610 Wohlen",{"$f":"+E8","v":"Kde1"},"Str1","5610 Wohlen","Herr abc","xyz@xyz.ch","invoice@xyz.ch","14 Tagen",null,null,null,"FBO4",1,{"$f":"IF(C8=\"4_Abo_gekündigt\",\"gekündigt\",IF(C8=\"5_Abo_Test_negativ\",\"nicht abgeschlossen\",VLOOKUP(S8,Rhytmus,2,0)))","v":"jede Woche"},"MO","2025-09-15",null,"Citymove"]
["K0019",20220019,"2_Abo_aktiv","UUB","Kde2","Str1","5001 Aarau","Kde2","Str1","5001 Aarau","Herr abc","xyz@xyz.ch","invoice@xyz.ch","14 Tagen",null,null,null,"2 Boxen: FBO4/FBO6",1,"jede Woche","MO","2025-09-15",null,"Renner"]
["K0043",20220043,"2_Abo_aktiv","UUB","Kde3","Str1","5001 Aarau","Kde3","Str1","5001 Aarau","Herr abc","xyz@xyz.ch","invoice@xyz.ch","14 Tagen",null,null,null,"FBO4",2,"jede zweite Woche","MO","2025-09-15",null,"Citymove"]
["K0049",20220049,"2_Abo_aktiv","UUB","Kde4","Str1","5001 Aarau",{"$f":"+E11","v":"Kde4"},"Str1","9501 Wil SG","Herr abc","xyz@xyz.ch","invoice@xyz.ch","14 Tagen",null,null,null,"FBO6",1,"jede Woche","MO","2025-09-15",null,"Citymove"]
["K0057",20220057,"2_Abo_aktiv","UUB","Kde5","Str1","5001 Aarau","Kde5",{"$f":"+F12","v":"Str1"},{"$f":"+G12","v":"5001 Aarau"},"Herr abc","xyz@xyz.ch","invoice@xyz.ch","14 Tagen",null,null,null,"2 Boxen: BAB5/FBO5",1,"jede Woche","MO","2025-09-15",null,"Renner"]
["K0062",20220062,"3_Abo_Abruf","UUB","Kde6","Str1","5001 Aarau","Kde6","Str1","5001 Aarau","Herr abc","xyz@xyz.ch","invoice@xyz.ch","14 Tagen",null,null,null,"CH-SAQ_11",20,"auf Abruf","DI","2025-09-09",null,"Renner"]
[null,null,null,null,null,null,null,0,0,0,null,null,{"$f":"+L14","v":0},"14 Tagen",null,null,null,null,null,{"$f":"IF(C14=\"4_Abo_gekündigt\",\"gekündigt\",VLOOKUP(S14,Rhytmus,2,0))","v":{"$error":"#N/A"}},null,null,null,"Citymove"]
[null,null,null,null,null,null,null,0,0,0,null,null,0,"14 Tagen",null,null,null,null,null,{"$error":"#N/A"},null,null,null,"Citymove"]
[null,null,null,null,null,null,null,0,0,0,null,null,0,"14 Tagen",null,null,null,null,null,{"$error":"#N/A"},null,null,null,"Citymove"]
[null,null,null,null,null,null,null,0,0,0,null,null,0,"14 Tagen",null,null,null,null,null,{"$error":"#N/A"},null,null,null,"Citymove"]
[null,null,null,null,null,null,null,0,0,0,null,null,0,"14 Tagen",null,null,null,null,null,{"$error":"#N/A"},null,null,null,"Citymove"]
[null,null,null,null,null,null,null,0,0,0,null,null,0,"14 Tagen",null,null,null,null,null,{"$error":"#N/A"},null,null,null,"Citymove"]
[null,null,null,null,null,null,null,0,0,0,null,null,0,"14 Tagen",null,null,null,null,null,{"$error":"#N/A"},null,null,null,"Citymove"]
[null,null,null,null,null,null,null,0,0,0,null,null,0,"14 Tagen",null,null,null,null,null,{"$error":"#N/A"},null,null,null,"Citymove"]
[null,null,null,null,null,null,null,0,0,0,null,null,0,"14 Tagen",null,null,null,null,null,{"$error":"#N/A"},null,null,null,"Citymove"]
[null,null,null,null,null,null,null,0,0,0,null,null,0,"14 Tagen",null,null,null,null,null,{"$error":"#N/A"},null,null,null,"Citymove"]
[null,null,null,null,null,null,null,0,0,0,null,null,0,"14 Tagen",null,null,null,null,null,{"$error":"#N/A"},null,null,null,"Citymove"]
[null,null,null,null,null,null,null,0,0,0,null,null,0,"14 Tagen",null,null,null,null,null,{"$error":"#N/A"},null,null,null,"Citymove"]
[null,null,null,null,null,null,null,0,0,0,null,null,0,"14 Tagen",null,null,null,null,null,{"$error":"#N/A"},null,null,null,"Citymove"]
[null,null,null,null,null,null,null,0,0,0,null,null,0,"14 Tagen",null,null,null,null,null,{"$error":"#N/A"},null,null,null,"Citymove"]
[null,null,null,null,null,null,null,0,0,0,null,null,0,"14 Tagen",null,null,null,null,null,{"$error":"#N/A"},null,null,null,"Citymove"]
[null,null,null,null,null,null,null,0,0,0,null,null,0,"14 Tagen",null,null,null,null,null,{"$error":"#N/A"},null,null,null,"Citymove"]
[null,null,null,null,null,null,null,0,0,0,null,null,0,"14 Tagen",null,null,null,null,null,{"$error":"#N/A"},null,null,null,"Citymove"]
[null,null,null,null,null,null,null,0,0,0,null,null,0,"14 Tagen",null,null,null,null,null,{"$error":"#N/A"},null,null,null,"Citymove"]
[null,null,null,null,null,null,null,0,0,0,null,null,0,"14 Tagen",null,null,null,null,null,{"$error":"#N/A"},null,null,null,"Citymove"]
[null,null,null,null,null,null,null,0,0,0,null,null,0,"14 Tagen",null,null,null,null,null,{"$error":"#N/A"},null,null,null,"Citymove"]
[null,null,null,null,null,null,null,0,0,0,null,null,0,"14 Tagen",null,null,null,null,null,{"$error":"#N/A"},null,null,null,"Citymove"]
[null,null,null,null,null,null,null,0,0,0,null,null,0,"14 Tagen",null,null,null,null,null,{"$error":"#N/A"},null,null,null,"Citymove"]
[null,null,null,null,null,null,null,0,0,0,null,null,0,"14 Tagen",null,null,null,null,null,{"$error":"#N/A"},null,null,null,"Citymove"]
[null,null,null,null,null,null,null,0,0,0,null,null,0,"14 Tagen",null,null,null,null,null,{"$error":"#N/A"},null,null,null,"Citymove"]
[null,null,null,null,null,null,null,0,0,0,null,null,0,"14 Tagen",null,null,null,null,null,{"$error":"#N/A"},null,null,null,"Citymove"]
[null,null,null,null,null,null,null,0,0,0,null,null,0,"14 Tagen",null,null,null,null,null,{"$error":"#N/A"},null,null,null,"Citymove"]
[null,null,null,null,null,null,null,0,0,0,null,null,0,"14 Tagen",null,null,null,null,null,{"$error":"#N/A"},null,null,null,"Citymove"]
[null,null,null,null,null,null,null,0,0,0,null,null,0,"14 Tagen",null,null,null,null,null,{"$error":"#N/A"},null,null,null,"Citymove"]
[null,null,null,null,null,null,null,0,0,0,null,null,0,"14 Tagen",null,null,null,null,null,{"$error":"#N/A"},null,null,null,"Citymove"]
[null,null,null,null,null,null,null,0,0,0,null,null,0,"14 Tagen",null,null,null,null,null,{"$error":"#N/A"},null,null,null,"Citymove"]
[null,null,null,null,null,null,null,0,0,0,null,null,0,"14 Tagen",null,null,null,null,null,{"$error":"#N/A"},null,null,null,"Citymove"]
[null,null,null,null,null,null,null,0,0,0,null,null,0,"14 Tagen",null,null,null,null,null,{"$error":"#N/A"},null,null,null,"Citymove"]
[null,null,null,null,null,null,null,0,0,0,null,null,0,"14 Tagen",null,null,null,null,null,{"$error":"#N/A"},null,null,null,"Citymove"]
[null,null,null,null,null,null,null,0,0,0,null,null,0,"14 Tagen",null,null,null,null,null,{"$error":"#N/A"},null,null,null,"Citymove"]
[null,null,null,null,null,null,null,0,0,0,null,null,0,"14 Tagen",null,null,null,null,null,{"$error":"#N/A"},null,null,null,"Citymove"]
[null,null,null,null,null,null,null,0,0,0,null,null,0,"14 Tagen",null,null,null,null,null,{"$error":"#N/A"},null,null,null,"Citymove"]
[null,null,null,null,null,null,null,0,0,0,null,null,0,"14 Tagen",null,null,null,null,null,{"$error":"#N/A"},null,null,null,"Citymove"]
[null,null,null,null,null,null,null,0,0,0,null,null,0,"14 Tagen",null,null,null,null,null,{"$error":"#N/A"},null,null,null,"Citymove"]
[null,null,null,null,null,null,null,0,0,0,null,null,0,"14 Tagen",null,null,null,null,null,{"$error":"#N/A"},null,null,null,"Citymove"]
[null,null,null,null,null,null,null,0,0,0,null,null,0,"14 Tagen",null,null,null,null,null,{"$error":"#N/A"},null,null,null,"Citymove"]
[null,null,null,null,null,null,null,0,0,0,null,null,0,"14 Tagen",null,null,null,null,null,{"$error":"#N/A"},null,null,null,"Citymove"]
[null,null,null,null,null,null,null,0,0,0,null,null,0,"14 Tagen",null,null,null,null,null,{"$error":"#N/A"},null,null,null,"Citymove"]
[null,null,null,null,null,null,null,0,0,0,null,null,0,"14 Tagen",null,null,null,null,null,{"$error":"#N/A"},null,null,null,"Citymove"]
[null,null,null,null,null,null,null,0,0,0,null,null,0,"14 Tagen",null,null,null,null,null,{"$error":"#N/A"},null,null,null,"Citymove"]
[null,null,null,null,null,null,null,0,0,0,null,null,0,"14 Tagen",null,null,null,null,null,{"$error":"#N/A"},null,null,null,"Citymove"]
[null,null,null,null,null,null,null,0,0,0,null,null,0,"14 Tagen",null,null,null,null,null,{"$error":"#N/A"},null,null,null,"Citymove"]
[null,null,null,null,null,null,null,0,0,0,null,null,0,"14 Tagen",null,null,null,null,null,{"$error":"#N/A"},null,null,null,"Citymove"]
[null,null,null,null,null,null,null,0,0,0,null,null,0,"14 Tagen",null,null,null,null,null,{"$error":"#N/A"},null,null,null,"Citymove"]
[null,null,null,null,null,null,null,0,0,0,null,null,0,"14 Tagen",null,null,null,null,null,{"$error":"#N/A"},null,null,null,"Citymove"]
[null,null,null,null,null,null,null,0,0,0,null,null,0,"14 Tagen",null,null,null,null,null,{"$error":"#N/A"},null,null,null,"Citymove"]
[null,null,null,null,null,null,null,0,0,0,null,null,0,"14 Tagen",null,null,null,null,null,{"$error":"#N/A"},null,null,null,"Citymove"]
[null,null,null,null,null,null,null,0,0,0,null,null,0,"14 Tagen",null,null,null,null,null,{"$error":"#N/A"},null,null,null,"Citymove"]
[null,null,null,null,null,null,null,0,0,0,null,null,0,"14 Tagen",null,null,null,null,null,{"$error":"#N/A"},null,null,null,"Citymove"]
[null,null,null,null,null,null,null,0,0,0,null,null,0,"14 Tagen",null,null,null,null,null,{"$error":"#N/A"},null,null,null,"Citymove"]
[null,null,null,null,null,null,null,0,0,0,null,null,0,"14 Tagen",null,null,null,null,null,{"$error":"#N/A"},null,null,null,"Citymove"]
[null,null,null,null,null,null,null,0,0,0,null,null,0,"14 Tagen",null,null,null,null,null,{"$error":"#N/A"},null,null,null,"Citymove"]
[null,null,null,null,null,null,null,0,0,0,null,null,0,"14 Tagen",null,null,null,null,null,{"$error":"#N/A"},null,null,null,"Citymove"]
[null,null,null,null,null,null,null,0,0,0,null,null,0,"14 Tagen",null,null,null,null,null,{"$error":"#N/A"},null,null,null,"Citymove"]
[null,null,null,null,null,null,null,0,0,0,null,null,0,"14 Tagen",null,null,null,null,null,{"$error":"#N/A"},null,null,null,"Citymove"]
[null,null,null,null,null,null,null,0,0,0,null,null,0,"14 Tagen",null,null,null,null,null,{"$error":"#N/A"},null,null,null,"Citymove"]
[null,null,null,null,null,null,null,0,0,0,null,null,0,"14 Tagen",null,null,null,null,null,{"$error":"#N/A"},null,null,null,"Citymove"]
[null,null,null,null,null,null,null,{"$f":"+E75","v":0},0,0,null,null,0,"14 Tagen",null,null,null,null,null,{"$error":"#N/A"},null,null,null,"Citymove"]
[null,null,null,null,null,null,null,0,{"$f":"+F76","v":0},{"$f":"+G76","v":0},null,null,0,"14 Tagen",null,null,null,null,null,{"$error":"#N/A"},null,null,null,"Citymove"]
[null,null,null,null,null,null,null,0,0,0,null,null,0,"14 Tagen",null,null,null,null,null,{"$error":"#N/A"},null,null,null,"Citymove"]
[null,null,null,null,null,null,null,0,0,0,null,null,{"$f":"+L78","v":0},"14 Tagen",null,null,null,null,null,{"$f":"IF(C78=\"4_Abo_gekündigt\",\"gekündigt\",VLOOKUP(S78,Rhytmus,2,0))","v":{"$error":"#N/A"}},null,null,null,"Citymove"]
[null,null,null,null,null,null,null,0,0,0,null,null,0,"14 Tagen",null,null,null,null,null,{"$error":"#N/A"},null,null,null,"Citymove"]
[null,null,null,null,null,null,null,0,0,0,null,null,0,"14 Tagen",null,null,null,null,null,{"$error":"#N/A"},null,null,null,"Citymove"]
[null,null,null,null,null,null,null,0,0,0,null,null,0,"14 Tagen",null,null,null,null,null,{"$error":"#N/A"},null,null,null,"Citymove"]
[null,null,null,null,null,null,null,0,0,0,null,null,0,"14 Tagen",null,null,null,null,null,{"$error":"#N/A"},null,null,null,"Citymove"]
[null,null,null,null,null,null,null,0,0,0,null,null,0,"14 Tagen",null,null,null,null,null,{"$error":"#N/A"},null,null,null,"Citymove"]
[null,null,null,null,null,null,null,0,0,0,null,null,0,"14 Tagen",null,null,null,null,null,{"$error":"#N/A"},null,null,null,"Citymove"]
[null,null,null,null,null,null,null,0,0,0,null,null,0,"14 Tagen",null,null,null,null,null,{"$error":"#N/A"},null,null,null,"Citymove"]
[null,null,null,null,null,null,null,0,0,0,null,null,0,"14 Tagen",null,null,null,null,null,{"$error":"#N/A"},null,null,null,"Citymove"]
[null,null,null,null,null,null,null,0,0,0,null,null,0,"14 Tagen",null,null,null,null,null,{"$error":"#N/A"},null,null,null,"Citymove"]
[null,null,null,null,null,null,null,0,0,0,null,null,0,"14 Tagen",null,null,null,null,null,{"$error":"#N/A"},null,null,null,"Citymove"]
[null,null,null,null,null,null,null,0,0,0,null,null,0,"14 Tagen",null,null,null,null,null,{"$error":"#N/A"},null,null,null,"Citymove"]
[null,null,null,null,null,null,null,0,0,0,null,null,0,"14 Tagen",null,null,null,null,null,{"$error":"#N/A"},null,null,null,"Citymove"]
[null,null,null,null,null,null,null,0,0,0,null,null,0,"14 Tagen",null,null,null,null,null,{"$error":"#N/A"},null,null,null,"Citymove"]
[null,null,null,null,null,null,null,0,0,0,null,null,0,"14 Tagen",null,null,null,null,null,{"$error":"#N/A"},null,null,null,"Citymove"]
[null,null,null,null,null,null,null,0,0,0,null,null,0,"14 Tagen",null,null,null,null,null,{"$error":"#N/A"},null,null,null,"Citymove"]
[null,null,null,null,null,null,null,0,0,0,null,null,0,"14 Tagen",null,null,null,null,null,{"$error":"#N/A"},null,null,null,"Citymove"]
[null,null,null,null,null,null,null,0,0,0,null,null,0,"14 Tagen",null,null,null,null,null,{"$error":"#N/A"},null,null,null,"Citymove"]
[null,null,null,null,null,null,null,0,0,0,null,null,0,"14 Tagen",null,null,null,null,null,{"$error":"#N/A"},null,null,null,"Citymove"]
[null,null,null,null,null,null,null,0,0,0,null,null,0,"14 Tagen",null,null,null,null,null,{"$error":"#N/A"},null,null,null,"Citymove"]
[null,null,null,null,null,null,null,0,0,0,null,null,0,"14 Tagen",null,null,null,null,null,{"$error":"#N/A"},null,null,null,"Citymove"]
[null,null,null,null,null,null,null,0,0,0,null,null,0,"14 Tagen",null,null,null,null,null,{"$error":"#N/A"},null,null,null,"Citymove"]
[null,null,null,null,null,null,null,0,0,0,null,null,0,"14 Tagen",null,null,null,null,null,{"$error":"#N/A"},null,null,null,"Citymove"]
[null,null,null,null,null,null,null,0,0,0,null,null,0,"14 Tagen",null,null,null,null,null,{"$error":"#N/A"},null,null,null,"Citymove"]
[null,null,null,null,null,null,null,0,0,0,null,null,0,"14 Tagen",null,null,null,null,null,{"$error":"#N/A"},null,null,null,"Citymove"]
[null,null,null,null,null,null,null,0,0,0,null,null,0,"14 Tagen",null,null,null,null,null,{"$error":"#N/A"},null,null,null,"Citymove"]
[null,null,null,null,null,null,null,0,0,0,null,null,0,"14 Tagen",null,null,null,null,null,{"$error":"#N/A"},null,null,null,"Citymove"]
[null,null,null,null,null,null,null,0,0,0,null,null,0,"14 Tagen",null,null,null,null,null,{"$error":"#N/A"},null,null,null,"Citymove"]
[null,null,null,null,null,null,null,0,0,0,null,null,0,"14 Tagen",null,null,null,null,null,{"$error":"#N/A"},null,null,null,"Citymove"]
[null,null,null,null,null,null,null,0,0,0,null,null,0,"14 Tagen",null,null,null,null,null,{"$error":"#N/A"},null,null,null,"Citymove"]
[null,null,null,null,null,null,null,0,0,0,null,null,0,"14 Tagen",null,null,null,null,null,{"$error":"#N/A"},null,null,null,"Citymove"]
[null,null,null,null,null,null,null,0,0,0,null,null,0,"14 Tagen",null,null,null,null,null,{"$error":"#N/A"},null,null,null,"Citymove"]
[null,null,null,null,null,null,null,0,0,0,null,null,0,"14 Tagen",null,null,null,null,null,{"$error":"#N/A"},null,null,null,"Citymove"]
[null,null,null,null,null,null,null,0,0,0,null,null,0,"14 Tagen",null,null,null,null,null,{"$error":"#N/A"},null,null,null,"Citymove"]
[null,null,null,null,null,null,null,0,0,0,null,null,0,"14 Tagen",null,null,null,null,null,{"$error":"#N/A"},null,null,null,"Citymove"]
[null,null,null,null,null,null,null,0,0,0,null,null,0,"14 Tagen",null,null,null,null,null,{"$error":"#N/A"},null,null,null,"Citymove"]
[null,null,null,null,null,null,null,0,0,0,null,null,0,"14 Tagen",null,null,null,null,null,{"$error":"#N/A"},null,null,null,"Citymove"]
[null,null,null,null,null,null,null,0,0,0,null,null,0,"14 Tagen",null,null,null,null,null,{"$error":"#N/A"},null,null,null,"Citymove"]
[null,null,null,null,null,null,null,0,0,0,null,null,0,"14 Tagen",null,null,null,null,null,{"$error":"#N/A"},null,null,null,"Citymove"]
[null,null,null,null,null,null,null,0,0,0,null,null,0,"14 Tagen",null,null,null,null,null,{"$error":"#N/A"},null,null,null,"Citymove"]
[null,null,null,null,null,null,null,0,0,0,null,null,0,"14 Tagen",null,null,null,null,null,{"$error":"#N/A"},null,null,null,"Citymove"]
[null,null,null,null,null,null,null,0,0,0,null,null,0,"14 Tagen",null,null,null,null,null,{"$error":"#N/A"},null,null,null,"Citymove"]
[null,null,null,null,null,null,null,0,0,0,null,null,0,"14 Tagen",null,null,null,null,null,{"$error":"#N/A"},null,null,null,"Citymove"]
[null,null,null,null,null,null,null,0,0,0,null,null,0,"14 Tagen",null,null,null,null,null,{"$error":"#N/A"},null,null,null,"Citymove"]
[null,null,null,null,null,null,null,0,0,0,null,null,0,"14 Tagen",null,null,null,null,null,{"$error":"#N/A"},null,null,null,"Citymove"]
[null,null,null,null,null,null,null,0,0,0,null,null,0,"14 Tagen",null,null,null,null,null,{"$error":"#N/A"},null,null,null,"Citymove"]
[null,null,null,null,null,null,null,0,0,0,null,null,0,"14 Tagen",null,null,null,null,null,{"$error":"#N/A"},null,null,null,"Citymove"]
[null,null,null,null,null,null,null,0,0,0,null,null,0,"14 Tagen",null,null,null,null,null,{"$error":"#N/A"},null,null,null,"Citymove"]
[null,null,null,null,null,null,null,0,0,0,null,null,0,"14 Tagen",null,null,null,null,null,{"$error":"#N/A"},null,null,null,"Citymove"]
[null,null,null,null,null,null,null,0,0,0,null,null,0,"14 Tagen",null,null,null,null,null,{"$error":"#N/A"},null,null,null,"Citymove"]
[null,null,null,null,null,null,null,0,0,0,null,null,0,"14 Tagen",null,null,null,null,null,{"$error":"#N/A"},null,null,null,"Citymove"]
[null,null,null,null,null,null,null,0,0,0,null,null,0,"14 Tagen",null,null,null,null,null,{"$error":"#N/A"},null,null,null,"Citymove"]
[null,null,null,null,null,null,null,0,0,0,null,null,0,"14 Tagen",null,null,null,null,null,{"$error":"#N/A"},null,null,null,"Citymove"]
[null,null,null,null,null,null,null,0,0,0,null,null,0,"14 Tagen",null,null,null,null,null,{"$error":"#N/A"},null,null,null,"Citymove"]
[null,null,null,null,null,null,null,0,0,0,null,null,0,"14 Tagen",null,null,null,null,null,{"$error":"#N/A"},null,null,null,"Citymove"]
[null,null,null,null,null,null,null,0,0,0,null,null,0,"14 Tagen",null,null,null,null,null,{"$error":"#N/A"},null,null,null,"Citymove"]
[null,null,null,null,null,null,null,0,0,0,null,null,0,"14 Tagen",null,null,null,null,null,{"$error":"#N/A"},null,null,null,"Citymove"]
[null,null,null,null,null,null,null,0,0,0,null,null,0,"14 Tagen",null,null,null,null,null,{"$error":"#N/A"},null,null,null,"Citymove"]
[null,null,null,null,null,null,null,0,0,0,null,null,0,"14 Tagen",null,null,null,null,null,{"$error":"#N/A"},null,null,null,"Citymove"]
[null,null,null,null,null,null,null,0,0,0,null,null,0,"14 Tagen",null,null,null,null,null,{"$error":"#N/A"},null,null,null,"Citymove"]
[null,null,null,null,null,null,null,0,0,0,null,null,0,"14 Tagen",null,null,null,null,null,{"$error":"#N/A"},null,null,null,"Citymove"]
[null,null,null,null,null,null,null,{"$f":"+E139","v":0},0,0,null,null,0,"14 Tagen",null,null,null,null,null,{"$error":"#N/A"},null,null,null,"Citymove"]
[null,null,null,null,null,null,null,0,{"$f":"+F140","v":0},{"$f":"+G140","v":0},null,null,0,"14 Tagen",null,null,null,null,null,{"$error":"#N/A"},null,null,null,"Citymove"]
[null,null,null,null,null,null,null,0,0,0,null,null,0,"14 Tagen",null,null,null,null,null,{"$error":"#N/A"},null,null,null,"Citymove"]
[null,null,null,null,null,null,null,0,0,0,null,null,{"$f":"+L142","v":0},"14 Tagen",null,null,null,null,null,{"$f":"IF(C142=\"4_Abo_gekündigt\",\"gekündigt\",VLOOKUP(S142,Rhytmus,2,0))","v":{"$error":"#N/A"}},null,null,null,"Citymove"]
[null,null,null,null,null,null,null,0,0,0,null,null,0,"14 Tagen",null,null,null,null,null,{"$error":"#N/A"},null,null,null,"Citymove"]
[null,null,null,null,null,null,null,0,0,0,null,null,0,"14 Tagen",null,null,null,null,null,{"$error":"#N/A"},null,null,null,"Citymove"]
[null,null,null,null,null,null,null,0,0,0,null,null,0,"14 Tagen",null,null,null,null,null,{"$error":"#N/A"},null,null,null,"Citymove"]
[null,null,null,null,null,null,null,0,0,0,null,null,0,"14 Tagen",null,null,null,null,null,{"$error":"#N/A"},null,null,null,"Citymove"]
[null,null,null,null,null,null,null,0,0,0,null,null,0,"14 Tagen",null,null,null,null,null,{"$error":"#N/A"},null,null,null,"Citymove"]
[null,null,null,null,null,null,null,0,0,0,null,null,0,"14 Tagen",null,null,null,null,null,{"$error":"#N/A"},null,null,null,"Citymove"]
[null,null,null,null,null,null,null,0,0,0,null,null,0,"14 Tagen",null,null,null,null,null,{"$error":"#N/A"},null,null,null,"Citymove"]
[null,null,null,null,null,null,null,0,0,0,null,null,0,"14 Tagen",null,null,null,null,null,{"$error":"#N/A"},null,null,null,"Citymove"]
[null,null,null,null,null,null,null,0,0,0,null,null,0,"14 Tagen",null,null,null,null,null,{"$error":"#N/A"},null,null,null,"Citymove"]
[null,null,null,null,null,null,null,0,0,0,null,null,0,"14 Tagen",null,null,null,null,null,{"$error":"#N/A"},null,null,null,"Citymove"]
[null,null,null,null,null,null,null,0,0,0,null,null,0,"14 Tagen",null,null,null,null,null,{"$error":"#N/A"},null,null,null,"Citymove"]
[null,null,null,null,null,null,null,0,0,0,null,null,0,"14 Tagen",null,null,null,null,null,{"$error":"#N/A"},null,null,null,"Citymove"]
[null,null,null,null,null,null,null,0,0,0,null,null,0,"14 Tagen",null,null,null,null,null,{"$error":"#N/A"},null,null,null,"Citymove"]
[null,null,null,null,null,null,null,0,0,0,null,null,0,"14 Tagen",null,null,null,null,null,{"$error":"#N/A"},null,null,null,"Citymove"]
[null,null,null,null,null,null,null,0,0,0,null,null,0,"14 Tagen",null,null,null,null,null,{"$error":"#N/A"},null,null,null,"Citymove"]
[null,null,null,null,null,null,null,0,0,0,null,null,0,"14 Tagen",null,null,null,null,null,{"$error":"#N/A"},null,null,null,"Citymove"]
[null,null,null,null,null,null,null,0,0,0,null,null,0,"14 Tagen",null,null,null,null,null,{"$error":"#N/A"},null,null,null,"Citymove"]
[null,null,null,null,null,null,null,0,0,0,null,null,0,"14 Tagen",null,null,null,null,null,{"$error":"#N/A"},null,null,null,"Citymove"]
[null,null,null,null,null,null,null,0,0,0,null,null,0,"14 Tagen",null,null,null,null,null,{"$error":"#N/A"},null,null,null,"Citymove"]
[null,null,null,null,null,null,null,0,0,0,null,null,0,"14 Tagen",null,null,null,null,null,{"$error":"#N/A"},null,null,null,"Citymove"]
[null,null,null,null,null,null,null,0,0,0,null,null,0,"14 Tagen",null,null,null,null,null,{"$error":"#N/A"},null,null,null,"Citymove"]
[null,null,null,null,null,null,null,0,0,0,null,null,0,"14 Tagen",null,null,null,null,null,{"$error":"#N/A"},null,null,null,"Citymove"]
[null,null,null,null,null,null,null,0,0,0,null,null,0,"14 Tagen",null,null,null,null,null,{"$error":"#N/A"},null,null,null,"Citymove"]
[null,null,null,null,null,null,null,0,0,0,null,null,0,"14 Tagen",null,null,null,null,null,{"$error":"#N/A"},null,null,null,"Citymove"]
[null,null,null,null,null,null,null,0,0,0,null,null,0,"14 Tagen",null,null,null,null,null,{"$error":"#N/A"},null,null,null,"Citymove"]
[null,null,null,null,null,null,null,0,0,0,null,null,0,"14 Tagen",null,null,null,null,null,{"$error":"#N/A"},null,null,null,"Citymove"]
[null,null,null,null,null,null,null,0,0,0,null,null,0,"14 Tagen",null,null,null,null,null,{"$error":"#N/A"},null,null,null,"Citymove"]
[null,null,null,null,null,null,null,0,0,0,null,null,0,"14 Tagen",null,null,null,null,null,{"$error":"#N/A"},null,null,null,"Citymove"]
[null,null,null,null,null,null,null,0,0,0,null,null,0,"14 Tagen",null,null,null,null,null,{"$error":"#N/A"},null,null,null,"Citymove"]
[null,null,null,null,null,null,null,0,0,0,null,null,0,"14 Tagen",null,null,null,null,null,{"$error":"#N/A"},null,null,null,"Citymove"]
[null,null,null,null,null,null,null,0,0,0,null,null,0,"14 Tagen",null,null,null,null,null,{"$error":"#N/A"},null,null,null,"Citymove"]
[null,null,null,null,null,null,null,0,0,0,null,null,0,"14 Tagen",null,null,null,null,null,{"$error":"#N/A"},null,null,null,"Citymove"]
[null,null,null,null,null,null,null,0,0,0,null,null,0,"14 Tagen",null,null,null,null,null,{"$error":"#N/A"},null,null,null,"Citymove"]
[null,null,null,null,null,null,null,0,0,0,null,null,0,"14 Tagen",null,null,null,null,null,{"$error":"#N/A"},null,null,null,"Citymove"]
[null,null,null,null,null,null,null,0,0,0,null,null,0,"14 Tagen",null,null,null,null,null,{"$error":"#N/A"},null,null,null,"Citymove"]
[null,null,null,null,null,null,null,0,0,0,null,null,0,"14 Tagen",null,null,null,null,null,{"$error":"#N/A"},null,null,null,"Citymove"]
[null,null,null,null,null,null,null,0,0,0,null,null,0,"14 Tagen",null,null,null,null,null,{"$error":"#N/A"},null,null,null,"Citymove"]
[null,null,null,null,null,null,null,0,0,0,null,null,0,"14 Tagen",null,null,null,null,null,{"$error":"#N/A"},null,null,null,"Citymove"]
[null,null,null,null,null,null,null,0,0,0,null,null,0,"14 Tagen",null,null,null,null,null,{"$error":"#N/A"},null,null,null,"Citymove"]
[null,null,null,null,null,null,null,0,0,0,null,null,0,"14 Tagen",null,null,null,null,null,{"$error":"#N/A"},null,null,null,"Citymove"]
[null,null,null,null,null,null,null,0,0,0,null,null,0,"14 Tagen",null,null,null,null,null,{"$error":"#N/A"},null,null,null,"Citymove"]
[null,null,null,null,null,null,null,0,0,0,null,null,0,"14 Tagen",null,null,null,null,null,{"$error":"#N/A"},null,null,null,"Citymove"]
[null,null,null,null,null,null,null,0,0,0,null,null,0,"14 Tagen",null,null,null,null,null,{"$error":"#N/A"},null,null,null,"Citymove"]
[null,null,null,null,null,null,null,0,0,0,null,null,0,"14 Tagen",null,null,null,null,null,{"$error":"#N/A"},null,null,null,"Citymove"]
[null,null,null,null,null,null,null,0,0,0,null,null,0,"14 Tagen",null,null,null,null,null,{"$error":"#N/A"},null,null,null,"Citymove"]
[null,null,null,null,null,null,null,0,0,0,null,null,0,"14 Tagen",null,null,null,null,null,{"$error":"#N/A"},null,null,null,"Citymove"]
[null,null,null,null,null,null,null,0,0,0,null,null,0,"14 Tagen",null,null,null,null,null,{"$error":"#N/A"},null,null,null,"Citymove"]
[null,null,null,null,null,null,null,0,0,0,null,null,0,"14 Tagen",null,null,null,null,null,{"$error":"#N/A"},null,null,null,"Citymove"]
[null,null,null,null,null,null,null,0,0,0,null,null,0,"14 Tagen",null,null,null,null,null,{"$error":"#N/A"},null,null,null,"Citymove"]
[null,null,null,null,null,null,null,0,0,0,null,null,0,"14 Tagen",null,null,null,null,null,{"$error":"#N/A"},null,null,null,"Citymove"]
[null,null,null,null,null,null,null,0,0,0,null,null,0,"14 Tagen",null,null,null,null,null,{"$error":"#N/A"},null,null,null,"Citymove"]
[null,null,null,null,null,null,null,0,0,0,null,null,0,"14 Tagen",null,null,null,null,null,{"$error":"#N/A"},null,null,null,"Citymove"]
[null,null,null,null,null,null,null,0,0,0,null,null,0,"14 Tagen",null,null,null,null,null,{"$error":"#N/A"},null,null,null,"Citymove"]
[null,null,null,null,null,null,null,0,0,0,null,null,0,"14 Tagen",null,null,null,null,null,{"$error":"#N/A"},null,null,null,"Citymove"]
[null,null,null,null,null,null,null,0,0,0,null,null,0,"14 Tagen",null,null,null,null,null,{"$error":"#N/A"},null,null,null,"Citymove"]
[null,null,null,null,null,null,null,0,0,0,null,null,0,"14 Tagen",null,null,null,null,null,{"$error":"#N/A"},null,null,null,"Citymove"]
[null,null,null,null,null,null,null,0,0,0,null,null,0,"14 Tagen",null,null,null,null,null,{"$error":"#N/A"},null,null,null,"Citymove"]
[null,null,null,null,null,null,null,0,0,0,null,null,0,"14 Tagen",null,null,null,null,null,{"$error":"#N/A"},null,null,null,"Citymove"]
[null,null,null,null,null,null,null,0,0,0,null,null,0,"14 Tagen",null,null,null,null,null,{"$error":"#N/A"},null,null,null,"Citymove"]
[null,null,null,null,null,null,null,0,0,0,null,null,0,"14 Tagen",null,null,null,null,null,{"$error":"#N/A"},null,null,null,"Citymove"]
[null,null,null,null,null,null,null,{"$f":"+E203","v":0},0,0,null,null,0,"14 Tagen",null,null,null,null,null,{"$error":"#N/A"},null,null,null,"Citymove"]
[null,null,null,null,null,null,null,0,{"$f":"+F204","v":0},{"$f":"+G204","v":0},null,null,0,"14 Tagen",null,null,null,null,null,{"$error":"#N/A"},null,null,null,"Citymove"]
[null,null,null,null,null,null,null,0,0,0,null,null,0,"14 Tagen",null,null,null,null,null,{"$error":"#N/A"},null,null,null,"Citymove"]
[null,null,null,null,null,null,null,0,0,0,null,null,{"$f":"+L206","v":0},"14 Tagen",null,null,null,null,null,{"$f":"IF(C206=\"4_Abo_gekündigt\",\"gekündigt\",VLOOKUP(S206,Rhytmus,2,0))","v":{"$error":"#N/A"}},null,null,null,"Citymove"]
[null,null,null,null,null,null,null,0,0,0,null,null,0,"14 Tagen",null,null,null,null,null,{"$error":"#N/A"},null,null,null,"Citymove"]
[null,null,null,null,null,null,null,0,0,0,null,null,0,"14 Tagen",null,null,null,null,null,{"$error":"#N/A"},null,null,null,"Citymove"]
[null,null,null,null,null,null,null,0,0,0,null,null,0,"14 Tagen",null,null,null,null,null,{"$error":"#N/A"},null,null,null,"Citymove"]
[null,null,null,null,null,null,null,0,0,0,null,null,0,"14 Tagen",null,null,null,null,null,{"$error":"#N/A"},null,null,null,"Citymove"]
[null,null,null,null,null,null,null,0,0,0,null,null,0,"14 Tagen",null,null,null,null,null,{"$error":"#N/A"},null,null,null,"Citymove"]
[null,null,null,null,null,null,null,0,0,0,null,null,0,"14 Tagen",null,null,null,null,null,{"$error":"#N/A"},null,null,null,"Citymove"]
[null,null,null,null,null,null,null,0,0,0,null,null,0,"14 Tagen",null,null,null,null,null,{"$error":"#N/A"},null,null,null,"Citymove"]
[null,null,null,null,null,null,null,0,0,0,null,null,0,"14 Tagen",null,null,null,null,null,{"$error":"#N/A"},null,null,null,"Citymove"]
[null,null,null,null,null,null,null,0,0,0,null,null,0,"14 Tagen",null,null,null,null,null,{"$error":"#N/A"},null,null,null,"Citymove"]
[null,null,null,null,null,null,null,0,0,0,null,null,0,"14 Tagen",null,null,null,null,null,{"$error":"#N/A"},null,null,null,"Citymove"]
[null,null,null,null,null,null,null,0,0,0,null,null,0,"14 Tagen",null,null,null,null,null,{"$error":"#N/A"},null,null,null,"Citymove"]
[null,null,null,null,null,null,null,0,0,0,null,null,0,"14 Tagen",null,null,null,null,null,{"$error":"#N/A"},null,null,null,"Citymove"]
[null,null,null,null,null,null,null,0,0,0,null,null,0,"14 Tagen",null,null,null,null,null,{"$error":"#N/A"},null,null,null,"Citymove"]
[null,null,null,null,null,null,null,0,0,0,null,null,0,"14 Tagen",null,null,null,null,null,{"$error":"#N/A"},null,null,null,"Citymove"]
[null,null,null,null,null,null,null,0,0,0,null,null,0,"14 Tagen",null,null,null,null,null,{"$error":"#N/A"},null,null,null,"Citymove"]
[null,null,null,null,null,null,null,0,0,0,null,null,0,"14 Tagen",null,null,null,null,null,{"$error":"#N/A"},null,null,null,"Citymove"]
[null,null,null,null,null,null,null,0,0,0,null,null,0,"14 Tagen",null,null,null,null,null,{"$error":"#N/A"},null,null,null,"Citymove"]
[null,null,null,null,null,null,null,0,0,0,null,null,0,"14 Tagen",null,null,null,null,null,{"$error":"#N/A"},null,null,null,"Citymove"]
[null,null,null,null,null,null,null,0,0,0,null,null,0,"14 Tagen",null,null,null,null,null,{"$error":"#N/A"},null,null,null,"Citymove"]
[null,null,null,null,null,null,null,0,0,0,null,null,0,"14 Tagen",null,null,null,null,null,{"$error":"#N/A"},null,null,null,"Citymove"]
[null,null,null,null,null,null,null,0,0,0,null,null,0,"14 Tagen",null,null,null,null,null,{"$error":"#N/A"},null,null,null,"Citymove"]
[null,null,null,null,null,null,null,0,0,0,null,null,0,"14 Tagen",null,null,null,null,null,{"$error":"#N/A"},null,null,null,"Citymove"]
[null,null,null,null,null,null,null,0,0,0,null,null,0,"14 Tagen",null,null,null,null,null,{"$error":"#N/A"},null,null,null,"Citymove"]
[null,null,null,null,null,null,null,0,0,0,null,null,0,"14 Tagen",null,null,null,null,null,{"$error":"#N/A"},null,null,null,"Citymove"]
[null,null,null,null,null,null,null,0,0,0,null,null,0,"14 Tagen",null,null,null,null,null,{"$error":"#N/A"},null,null,null,"Citymove"]
[null,null,null,null,null,null,null,0,0,0,null,null,0,"14 Tagen",null,null,null,null,null,{"$error":"#N/A"},null,null,null,"Citymove"]
[null,null,null,null,null,null,null,0,0,0,null,null,0,"14 Tagen",null,null,null,null,null,{"$error":"#N/A"},null,null,null,"Citymove"]
[null,null,null,null,null,null,null,0,0,0,null,null,0,"14 Tagen",null,null,null,null,null,{"$error":"#N/A"},null,null,null,"Citymove"]
[null,null,null,null,null,null,null,0,0,0,null,null,0,"14 Tagen",null,null,null,null,null,{"$error":"#N/A"},null,null,null,"Citymove"]
[null,null,null,null,null,null,null,0,0,0,null,null,0,"14 Tagen",null,null,null,null,null,{"$error":"#N/A"},null,null,null,"Citymove"]
[null,null,null,null,null,null,null,0,0,0,null,null,0,"14 Tagen",null,null,null,null,null,{"$error":"#N/A"},null,null,null,"Citymove"]
[null,null,null,null,null,null,null,0,0,0,null,null,0,"14 Tagen",null,null,null,null,null,{"$error":"#N/A"},null,null,null,"Citymove"]
[null,null,null,null,null,null,null,0,0,0,null,null,0,"14 Tagen",null,null,null,null,null,{"$error":"#N/A"},null,null,null,"Citymove"]
[null,null,null,null,null,null,null,0,0,0,null,null,0,"14 Tagen",null,null,null,null,null,{"$error":"#N/A"},null,null,null,"Citymove"]
[null,null,null,null,null,null,null,0,0,0,null,null,0,"14 Tagen",null,null,null,null,null,{"$error":"#N/A"},null,null,null,"Citymove"]
[null,null,null,null,null,null,null,0,0,0,null,null,0,"14 Tagen",null,null,null,null,null,{"$error":"#N/A"},null,null,null,"Citymove"]
[null,null,null,null,null,null,null,0,0,0,null,null,0,"14 Tagen",null,null,null,null,null,{"$error":"#N/A"},null,null,null,"Citymove"]
[null,null,null,null,null,null,null,0,0,0,null,null,0,"14 Tagen",null,null,null,null,null,{"$error":"#N/A"},null,null,null,"Citymove"]
[null,null,null,null,null,null,null,0,0,0,null,null,0,"14 Tagen",null,null,null,null,null,{"$error":"#N/A"},null,null,null,"Citymove"]
[null,null,null,null,null,null,null,0,0,0,null,null,0,"14 Tagen",null,null,null,null,null,{"$error":"#N/A"},null,null,null,"Citymove"]
[null,null,null,null,null,null,null,0,0,0,null,null,0,"14 Tagen",null,null,null,null,null,{"$error":"#N/A"},null,null,null,"Citymove"]
[null,null,null,null,null,null,null,0,0,0,null,null,0,"14 Tagen",null,null,null,null,null,{"$error":"#N/A"},null,null,null,"Citymove"]
[null,null,null,null,null,null,null,0,0,0,null,null,0,"14 Tagen",null,null,null,null,null,{"$error":"#N/A"},null,null,null,"Citymove"]
[null,null,null,null,null,null,null,0,0,0,null,null,0,"14 Tagen",null,null,null,null,null,{"$error":"#N/A"},null,null,null,"Citymove"]
[null,null,null,null,null,null,null,0,0,0,null,null,0,"14 Tagen",null,null,null,null,null,{"$error":"#N/A"},null,null,null,"Citymove"]
[null,null,null,null,null,null,null,0,0,0,null,null,0,"14 Tagen",null,null,null,null,null,{"$error":"#N/A"},null,null,null,"Citymove"]
[null,null,null,null,null,null,null,0,0,0,null,null,0,"14 Tagen",null,null,null,null,null,{"$error":"#N/A"},null,null,null,"Citymove"]
[null,null,null,null,null,null,null,0,0,0,null,null,0,"14 Tagen",null,null,null,null,null,{"$error":"#N/A"},null,null,null,"Citymove"]
[null,null,null,null,null,null,null,0,0,0,null,null,0,"14 Tagen",null,null,null,null,null,{"$error":"#N/A"},null,null,null,"Citymove"]
[null,null,null,null,null,null,null,0,0,0,null,null,0,"14 Tagen",null,null,null,null,null,{"$error":"#N/A"},null,null,null,"Citymove"]
[null,null,null,null,null,null,null,0,0,0,null,null,0,"14 Tagen",null,null,null,null,null,{"$error":"#N/A"},null,null,null,"Citymove"]
[null,null,null,null,null,null,null,0,0,0,null,null,0,"14 Tagen",null,null,null,null,null,{"$error":"#N/A"},null,null,null,"Citymove"]
[null,null,null,null,null,null,null,0,0,0,null,null,0,"14 Tagen",null,null,null,null,null,{"$error":"#N/A"},null,null,null,"Citymove"]
[null,null,null,null,null,null,null,0,0,0,null,null,0,"14 Tagen",null,null,null,null,null,{"$error":"#N/A"},null,null,null,"Citymove"]
[null,null,null,null,null,null,null,0,0,0,null,null,0,"14 Tagen",null,null,null,null,null,{"$error":"#N/A"},null,null,null,"Citymove"]
[null,null,null,null,null,null,null,0,0,0,null,null,0,"14 Tagen",null,null,null,null,null,{"$error":"#N/A"},null,null,null,"Citymove"]
[null,null,null,null,null,null,null,0,0,0,null,null,0,"14 Tagen",null,null,null,null,null,{"$error":"#N/A"},null,null,null,"Citymove"]
[null,null,null,null,null,null,null,0,0,0,null,null,0,"14 Tagen",null,null,null,null,null,{"$error":"#N/A"},null,null,null,"Citymove"]
[null,null,null,null,null,null,null,0,0,0,null,null,0,"14 Tagen",null,null,null,null,null,{"$error":"#N/A"},null,null,null,"Citymove"]
[null,null,null,null,null,null,null,0,0,0,null,null,0,"14 Tagen",null,null,null,null,null,{"$error":"#N/A"},null,null,null,"Citymove"]
[null,null,null,null,null,null,null,{"$f":"+E267","v":0},0,0,null,null,0,"14 Tagen",null,null,null,null,null,{"$error":"#N/A"},null,null,null,"Citymove"]
[null,null,null,null,null,null,null,0,{"$f":"+F268","v":0},{"$f":"+G268","v":0},null,null,0,"14 Tagen",null,null,null,null,null,{"$error":"#N/A"},null,null,null,"Citymove"]
[null,null,null,null,null,null,null,0,0,0,null,null,0,"14 Tagen",null,null,null,null,null,{"$error":"#N/A"},null,null,null,"Citymove"]
[null,null,null,null,null,null,null,0,0,0,null,null,{"$f":"+L270","v":0},"14 Tagen",null,null,null,null,null,{"$f":"IF(C270=\"4_Abo_gekündigt\",\"gekündigt\",VLOOKUP(S270,Rhytmus,2,0))","v":{"$error":"#N/A"}},null,null,null,"Citymove"]
[null,null,null,null,null,null,null,0,0,0,null,null,0,"14 Tagen",null,null,null,null,null,{"$error":"#N/A"},null,null,null,"Citymove"]
[null,null,null,null,null,null,null,0,0,0,null,null,0,"14 Tagen",null,null,null,null,null,{"$error":"#N/A"},null,null,null,"Citymove"]
[null,null,null,null,null,null,null,0,0,0,null,null,0,"14 Tagen",null,null,null,null,null,{"$error":"#N/A"},null,null,null,"Citymove"]
[null,null,null,null,null,null,null,0,0,0,null,null,0,"14 Tagen",null,null,null,null,null,{"$error":"#N/A"},null,null,null,"Citymove"]
[null,null,null,null,null,null,null,0,0,0,null,null,0,"14 Tagen",null,null,null,null,null,{"$error":"#N/A"},null,null,null,"Citymove"]
[null,null,null,null,null,null,null,0,0,0,null,null,0,"14 Tagen",null,null,null,null,null,{"$error":"#N/A"},null,null,null,"Citymove"]
[null,null,null,null,null,null,null,0,0,0,null,null,0,"14 Tagen",null,null,null,null,null,{"$error":"#N/A"},null,null,null,"Citymove"]
[null,null,null,null,null,null,null,0,0,0,null,null,0,"14 Tagen",null,null,null,null,null,{"$error":"#N/A"},null,null,null,"Citymove"]
[null,null,null,null,null,null,null,0,0,0,null,null,0,"14 Tagen",null,null,null,null,null,{"$error":"#N/A"},null,null,null,"Citymove"]
[null,null,null,null,null,null,null,0,0,0,null,null,0,"14 Tagen",null,null,null,null,null,{"$error":"#N/A"},null,null,null,"Citymove"]
[null,null,null,null,null,null,null,0,0,0,null,null,0,"14 Tagen",null,null,null,null,null,{"$error":"#N/A"},null,null,null,"Citymove"]
[null,null,null,null,null,null,null,0,0,0,null,null,0,"14 Tagen",null,null,null,null,null,{"$error":"#N/A"},null,null,null,"Citymove"]
[null,null,null,null,null,null,null,0,0,0,null,null,0,"14 Tagen",null,null,null,null,null,{"$error":"#N/A"},null,null,null,"Citymove"]
[null,null,null,null,null,null,null,0,0,0,null,null,0,"14 Tagen",null,null,null,null,null,{"$error":"#N/A"},null,null,null,"Citymove"]
[null,null,null,null,null,null,null,0,0,0,null,null,0,"14 Tagen",null,null,null,null,null,{"$error":"#N/A"},null,null,null,"Citymove"]
[null,null,null,null,null,null,null,0,0,0,null,null,0,"14 Tagen",null,null,null,null,null,{"$error":"#N/A"},null,null,null,"Citymove"]
[null,null,null,null,null,null,null,0,0,0,null,null,0,"14 Tagen",null,null,null,null,null,{"$error":"#N/A"},null,null,null,"Citymove"]
[null,null,null,null,null,null,null,0,0,0,null,null,0,"14 Tagen",null,null,null,null,null,{"$error":"#N/A"},null,null,null,"Citymove"]
[null,null,null,null,null,null,null,0,0,0,null,null,0,"14 Tagen",null,null,null,null,null,{"$error":"#N/A"},null,null,null,"Citymove"]
[null,null,null,null,null,null,null,0,0,0,null,null,0,"14 Tagen",null,null,null,null,null,{"$error":"#N/A"},null,null,null,"Citymove"]
[null,null,null,null,null,null,null,0,0,0,null,null,0,"14 Tagen",null,null,null,null,null,{"$error":"#N/A"},null,null,null,"Citymove"]
[null,null,null,null,null,null,null,0,0,0,null,null,0,"14 Tagen",null,null,null,null,null,{"$error":"#N/A"},null,null,null,"Citymove"]
[null,null,null,null,null,null,null,0,0,0,null,null,0,"14 Tagen",null,null,null,null,null,{"$error":"#N/A"},null,null,null,"Citymove"]
[null,null,null,null,null,null,null,0,0,0,null,null,0,"14 Tagen",null,null,null,null,null,{"$error":"#N/A"},null,null,null,"Citymove"]
[null,null,null,null,null,null,null,0,0,0,null,null,0,"14 Tagen",null,null,null,null,null,{"$error":"#N/A"},null,null,null,"Citymove"]
[null,null,null,null,null,null,null,0,0,0,null,null,0,"14 Tagen",null,null,null,null,null,{"$error":"#N/A"},null,null,null,"Citymove"]
[null,null,null,null,null,null,null,0,0,0,null,null,0,"14 Tagen",null,null,null,null,null,{"$error":"#N/A"},null,null,null,"Citymove"]
[null,null,null,null,null,null,null,0,0,0,null,null,0,"14 Tagen",null,null,null,null,null,{"$error":"#N/A"},null,null,null,"Citymove"]
[null,null,null,null,null,null,null,0,0,0,null,null,0,"14 Tagen",null,null,null,null,null,{"$error":"#N/A"},null,null,null,"Citymove"]
[null,null,null,null,null,null,null,0,0,0,null,null,0,"14 Tagen",null,null,null,null,null,{"$error":"#N/A"},null,null,null,"Citymove"]
[null,null,null,null,null,null,null,0,0,0,null,null,0,"14 Tagen",null,null,null,null,null,{"$error":"#N/A"},null,null,null,"Citymove"]
[null,null,null,null,null,null,null,0,0,0,null,null,0,"14 Tagen",null,null,null,null,null,{"$error":"#N/A"},null,null,null,"Citymove"]
[null,null,null,null,null,null,null,0,0,0,null,null,0,"14 Tagen",null,null,null,null,null,{"$error":"#N/A"},null,null,null,"Citymove"]
[null,null,null,null,null,null,null,0,0,0,null,null,0,"14 Tagen",null,null,null,null,null,{"$error":"#N/A"},null,null,null,"Citymove"]
[null,null,null,null,null,null,null,0,0,0,null,null,0,"14 Tagen",null,null,null,null,null,{"$error":"#N/A"},null,null,null,"Citymove"]
[null,null,null,null,null,null,null,0,0,0,null,null,0,"14 Tagen",null,null,null,null,null,{"$error":"#N/A"},null,null,null,"Citymove"]
[null,null,null,null,null,null,null,0,0,0,null,null,0,"14 Tagen",null,null,null,null,null,{"$error":"#N/A"},null,null,null,"Citymove"]
[null,null,null,null,null,null,null,0,0,0,null,null,0,"14 Tagen",null,null,null,null,null,{"$error":"#N/A"},null,null,null,"Citymove"]
[null,null,null,null,null,null,null,0,0,0,null,null,0,"14 Tagen",null,null,null,null,null,{"$error":"#N/A"},null,null,null,"Citymove"]
[null,null,null,null,null,null,null,0,0,0,null,null,0,"14 Tagen",null,null,null,null,null,{"$error":"#N/A"},null,null,null,"Citymove"]
[null,null,null,null,null,null,null,0,0,0,null,null,0,"14 Tagen",null,null,null,null,null,{"$error":"#N/A"},null,null,null,"Citymove"]
[null,null,null,null,null,null,null,0,0,0,null,null,0,"14 Tagen",null,null,null,null,null,{"$error":"#N/A"},null,null,null,"Citymove"]
[null,null,null,null,null,null,null,0,0,0,null,null,0,"14 Tagen",null,null,null,null,null,{"$error":"#N/A"},null,null,null,"Citymove"]
[null,null,null,null,null,null,null,0,0,0,null,null,0,"14 Tagen",null,null,null,null,null,{"$error":"#N/A"},null,null,null,"Citymove"]
[null,null,null,null,null,null,null,0,0,0,null,null,0,"14 Tagen",null,null,null,null,null,{"$error":"#N/A"},null,null,null,"Citymove"]
[null,null,null,null,null,null,null,0,0,0,null,null,0,"14 Tagen",null,null,null,null,null,{"$error":"#N/A"},null,null,null,"Citymove"]
[null,null,null,null,null,null,null,0,0,0,null,null,0,"14 Tagen",null,null,null,null,null,{"$error":"#N/A"},null,null,null,"Citymove"]
[null,null,null,null,null,null,null,0,0,0,null,null,0,"14 Tagen",null,null,null,null,null,{"$error":"#N/A"},null,null,null,"Citymove"]
[null,null,null,null,null,null,null,0,0,0,null,null,0,"14 Tagen",null,null,null,null,null,{"$error":"#N/A"},null,null,null,"Citymove"]
[null,null,null,null,null,null,null,0,0,0,null,null,0,"14 Tagen",null,null,null,null,null,{"$error":"#N/A"},null,null,null,"Citymove"]
[null,null,null,null,null,null,null,0,0,0,null,null,0,"14 Tagen",null,null,null,null,null,{"$error":"#N/A"},null,null,null,"Citymove"]
[null,null,null,null,null,null,null,0,0,0,null,null,0,"14 Tagen",null,null,null,null,null,{"$error":"#N/A"},null,null,null,"Citymove"]
[null,null,null,null,null,null,null,0,0,0,null,null,0,"14 Tagen",null,null,null,null,null,{"$error":"#N/A"},null,null,null,"Citymove"]
[null,null,null,null,null,null,null,0,0,0,null,null,0,"14 Tagen",null,null,null,null,null,{"$error":"#N/A"},null,null,null,"Citymove"]
[null,null,null,null,null,null,null,0,0,0,null,null,0,"14 Tagen",null,null,null,null,null,{"$error":"#N/A"},null,null,null,"Citymove"]
[null,null,null,null,null,null,null,0,0,0,null,null,0,"14 Tagen",null,null,null,null,null,{"$error":"#N/A"},null,null,null,"Citymove"]
[null,null,null,null,null,null,null,0,0,0,null,null,0,"14 Tagen",null,null,null,null,null,{"$error":"#N/A"},null,null,null,"Citymove"]
[null,null,null,null,null,null,null,0,0,0,null,null,0,"14 Tagen",null,null,null,null,null,{"$error":"#N/A"},null,null,null,"Citymove"]
[null,null,null,null,null,null,null,0,0,0,null,null,0,"14 Tagen",null,null,null,null,null,{"$error":"#N/A"},null,null,null,"Citymove"]
[null,null,null,null,null,null,null,0,0,0,null,null,0,"14 Tagen",null,null,null,null,null,{"$error":"#N/A"},null,null,null,"Citymove"]
[null,null,null,null,null,null,null,0,0,0,null,null,0,"14 Tagen",null,null,null,null,null,{"$error":"#N/A"},null,null,null,"Citymove"]
[null,null,null,null,null,null,null,0,0,0,null,null,0,"14 Tagen",null,null,null,null,null,{"$error":"#N/A"},null,null,null,"Citymove"]
[null,null,null,null,null,null,null,0,0,0,null,null,0,"14 Tagen",null,null,null,null,null,{"$error":"#N/A"},null,null,null,"Citymove"]

{"sheet":"AB_norm","index":1,"n_rows":46,"n_cols":4,"rows_kept":46,"cut":false,"hidden":false,"merged":[]}
["Kde-Nr.","K0011"]
[]
["Status:",{"$f":"+VLOOKUP(B1,Kunden,3,0)","v":"2_Abo_aktiv"}]
["Box:",{"$f":"+VLOOKUP(B1,Kunden,18,0)","v":"FBO4"}]
["Zielgruppe:",{"$f":"+VLOOKUP(B1,Kunden,4,0)","v":"UUB"}]
[]
[]
[]
[]
[]
[]
[]
[{"$f":"+VLOOKUP(B1,Kunden,8,0)","v":"Kde1"},null,"Kunden-Nr.:",{"$f":"+B1","v":"K0011"}]
[{"$f":"+VLOOKUP(B1,Kunden,9,0)","v":"Str1"}]
[{"$f":"+VLOOKUP(B1,Kunden,10,0)","v":"5610 Wohlen"},null,"Datum: ",{"$f":"+TODAY()","v":"2025-09-08"}]
[]
[{"$f":"+IF(B3=\"1_Abo_Test\",\"Auftragsbestätigung Früchte-Abo Testbestellung\",\"Auftragsbestätigung Früchte-Abo\")","v":"Auftragsbestätigung Früchte-Abo"}]
[]
["Abo-Bezeichnung:",{"$f":"+VLOOKUP(B4,Boxen,3,0)","v":"Früchte-Box Standard"}]
[{"$f":"+IF(B5=\"Privat\",\"Anz. Taschen pro Lieferung:\",\"Anz. Boxen pro Lieferung:\")","v":"Anz. Boxen pro Lieferung:"},{"$f":"+VLOOKUP(B4,Boxen,4,0)","v":1}]
[{"$f":"+IF(B5=\"Privat\",\"KG pro Tasche:\",\"KG pro Box:\")","v":"KG pro Box:"},{"$f":"+VLOOKUP(B4,Boxen,5,0)","v":"4 KG"}]
[{"$f":"+IF(B5=\"Privat\",\"Preis pro Tasche inkl. Lieferung:\",\"Preis pro Box inkl. Lieferung:\")","v":"Preis pro Box inkl. Lieferung:"},{"$f":"+VLOOKUP(B4,Boxen,6,0)","v":"CHF 37.00 inkl. MwSt."}]
["Total pro Auslieferung:",{"$f":"+B22","v":"CHF 37.00 inkl. MwSt."}]
["Liefer-Rhythmus:",{"$f":"+IF(B3=\"1_Abo_Test\",\"einmalige Testbestellung\",VLOOKUP(B1,Kunden,20,0))","v":"jede Woche"}]
[]
[]
["Erster Liefertermin:",{"$f":"+VLOOKUP(B1,Kunden,22,0)","v":"2025-09-15"}]
["Mindestlaufzeit:","keine"]
["Kündigungsfrist: ",{"$f":"+IF(B3=\"1_Abo_Test\",\"-\",\"7 Tage\")","v":"7 Tage"}]
["Zahlungsbedingungen: ",{"$f":"+\"Monatsrechnung, zahlbar innert \"&VLOOKUP(B1,Kunden,14,0)","v":"Monatsrechnung, zahlbar innert 14 Tagen"}]
["Rechnungsversand an: ",{"$f":"+VLOOKUP(B1,Kunden,13,0)","v":"invoice@xyz.ch"}]
[]
[{"$f":"+IF(B5=\"UUB\",\"Ihr Ansprechpartner:\",\"\")","v":"Ihr Ansprechpartner:"},{"$f":"IF(B5=\"UUB\",+VLOOKUP(B1,Kunden,11,0),\"\")","v":"Herr abc"}]
["Telefon-Nr.:",{"$f":"+VLOOKUP(B1,Kunden,15,0)","v":0}]
["E-Mail-Adresse: ",{"$f":"+VLOOKUP(B1,Kunden,12,0)","v":"xyz@xyz.ch"}]
[]
["Lieferadresse:",{"$f":"+VLOOKUP(B1,Kunden,5,0)","v":"Kde1"}]
[null,{"$f":"+VLOOKUP(B1,Kunden,6,0)","v":"Str1"}]
[null,{"$f":"+VLOOKUP(B1,Kunden,7,0)","v":"5610 Wohlen"}]
[]
[{"$f":"+IF(B25=\"\",\"Die Holz-Box, in welcher unsere Früchte geliefert werden, bleibt im Eigentum von RennerTrade und \",\"\")","v":"Die Holz-Box, in welcher unsere Früchte geliefert werden, bleibt im Eigentum von RennerTrade und "}]
[{"$f":"+IF(B25=\"\",\"wird jeweils bei der nächsten Lieferung wieder abgeholt (im Austausch).\",\"\")","v":"wird jeweils bei der nächsten Lieferung wieder abgeholt (im Austausch)."}]
[]
["Unsere aktuellen AGB finden Sie unter www.frucht-abo.ch/agb."]
[]
["Herzlichen Dank für Ihren Auftrag!"]

{"sheet":"RG_autom","index":2,"n_rows":62,"n_cols":14,"rows_kept":62,"cut":false,"hidden":false,"merged":[]}
["Kde-Nr:",null,"K0011",null,null,"1. Erfassen RG-Nr. Monat und RG-Datum"]
["RG-Nr.",null,"082025","0 vor Monat!!!",null,"2. Kde-Nr. eingeben"]
["RG-Datum:",null,"28.08.2025",null,null,"3. Boxen, Lieferdatum und Menge eingeben resp. Werte aus Lieferliste einfügen"]
[null,null,null,null,null,"4. RG drucken und PDF drucken"]
["AP:",null,{"$f":"VLOOKUP(C1,Kunden,11,0)","v":"Herr abc"}]
["Zielgruppe:",null,{"$f":"+VLOOKUP(C1,Kunden,4,0)","v":"UUB"}]
["Mail RG:",null,{"$f":"+VLOOKUP(C1,Kunden,13,0)","v":"invoice@xyz.ch"}]
[]
[]
[]
[]
[]
[]
[null,"RennerTrade"]
[null,"Aeplimatt 9"]
[null,"CH - 5018 Erlinsbach",null,null,{"$f":"\"Erlinsbach, \"&C3","v":"Erlinsbach, 28.08.2025"}]
[]
[null,"Tel.: +41 62 589 67 97"]
[null,"E-Mail: info@frucht-abo.ch"]
[]
[]
[null,null,null,null,"RennerTrade, Aeplimatt 9, CH – 5018 Erlinsbach"]
[null,null,null,null,{"$f":"+VLOOKUP(C1,Kunden,8,0)","v":"Kde1"}]
[null,null,null,null,{"$f":"+VLOOKUP(C1,Kunden,9,0)","v":"Str1"}]
[null,null,null,null,{"$f":"+VLOOKUP(C1,Kunden,10,0)","v":"5610 Wohlen"}]
[]
[]
[]
[]
[null,{"$f":"\"Rechnung Nr. \"&C1&\"-\"&C2","v":"Rechnung Nr. K0011-082025"}]
[]
[null,"Kde-Nr.:",{"$f":"+C1","v":"K0011"},null,"Unser Zeichen: Thomas Renner"]
[null,{"$f":"\"RG-Versand an: \"&C7","v":"RG-Versand an: invoice@xyz.ch"},null,null,{"$f":"\"Ihr Zeichen: \"&C5","v":"Ihr Zeichen: Herr abc"}]
[]
[]
[null,"Art.","Artikel-Beschreibung","Lieferdatum","Anz. Stk.","CHF/Stk.","Total CHF","MwSt.",null,null,null,null,"MwSt 2.6","MwSt 8.1"]
[null,null,null,null,null,null,null,"(inkl.)"]
[null,{"$f":"+_xlfn._xlws.FILTER(RGdatenneu,RGquelle=$C$1)","v":"FBO4"},"Früchte-Box Standard 4 KG","2025-08-04",1,{"$f":"+IF(B38=\"\",\"\",(VLOOKUP(B38,Boxen,7,0)))","v":37},{"$f":"+IF(B38=\"\",\"\",F38*E38)","v":37},{"$f":"+IF(B38=\"\",\"\",2.6%)","v":2.6000000000000002E-2},null,null,null,null,{"$f":"+IF(H38=2.6%,G38,0)","v":37},{"$f":"+IF(H38=8.1%,G38,0)","v":0}]
[null,"FBO4","Früchte-Box Standard 4 KG","2025-08-11",1,37,37,{"$f":"+IF(B39=\"\",\"\",2.6%)","v":2.6000000000000002E-2},null,null,null,null,{"$f":"+IF(H39=2.6%,G39,0)","v":37},{"$f":"+IF(H39=8.1%,G39,0)","v":0}]
[null,"FBO4","Früchte-Box Standard 4 KG","2025-08-18",1,37,37,{"$f":"+IF(B40=\"\",\"\",2.6%)","v":2.6000000000000002E-2},null,null,null,null,37,0]
[null,"FBO4","Früchte-Box Standard 4 KG","2025-08-25",1,37,37,2.6000000000000002E-2,null,null,null,null,37,0]
[null,null,null,null,null,"","","",null,null,null,null,0,0]
[null,null,null,null,null,"","","",null,null,null,null,0,0]
[null,null,null,null,null,"","","",null,null,null,null,0,0]
[null,null,null,null,null,"","","",null,null,null,null,0,0]
[null,null,null,null,null,"","","",null,null,null,null,0,0]
[null,null,null,null,null,"","","",null,null,null,null,0,0]
[null,null,null,null,null,"","","",null,null,null,null,{"$f":"+IF(H48=2.6%,G48,0)","v":0},{"$f":"+IF(H48=8.1%,G48,0)","v":0}]
[]
[null,null,null,null,"TOTAL CHF inkl. MwSt.",null,{"$f":"+SUM(G38:G49)","v":148}]
[null,null,null,null,"darin enthaltene MwSt. 2.6%",null,{"$f":"+M51-M52","v":3.7504873294346908},null,null,null,null,null,{"$f":"+SUM(M38:M48)","v":148},{"$f":"+SUM(N38:N48)","v":0}]
[null,null,null,null,"darin enthaltene MwSt. 8.1%",null,{"$f":"+N51-N52","v":0},null,null,null,null,null,{"$f":"+M51/1.026","v":144.24951267056531},{"$f":"+N51/1.081","v":0}]
[]
[]
[null,"Herzlichen Dank für Ihr Vertrauen – wir wünschen «en Guete»!"]
[]
[null,"Freundliche Grüsse",null,null,"Lieferadresse"]
[]
[null,"Renner Trade",null,null,{"$f":"+VLOOKUP(C1,Kunden,8,0)","v":"Kde1"}]
[null,"Thomas Renner",null,null,{"$f":"+VLOOKUP(C1,Kunden,9,0)","v":"Str1"}]
[null,null,null,null,{"$f":"+VLOOKUP(C1,Kunden,10,0)","v":"5610 Wohlen"}]
[null,{"$f":"+\"Zahlbar innert \"&VLOOKUP(C1,Kunden,14,0)","v":"Zahlbar innert 14 Tagen"}]

{"sheet":"RGdates","index":3,"n_rows":1268,"n_cols":5,"rows_kept":1268,"cut":false,"hidden":false,"merged":[]}
["Kde","Box","Bezeichnung","Datum","Menge"]
["K0011","FBO4",{"$f":"+(IF(B2=\"\",\"\",VLOOKUP(B2,Boxen,2,0)))","v":"Früchte-Box Standard 4 KG"},"2025-08-04",1]
["K0011","FBO4","Früchte-Box Standard 4 KG","2025-08-11",1]
["K0011","FBO4","Früchte-Box Standard 4 KG","2025-08-18",1]
["K0011","FBO4","Früchte-Box Standard 4 KG","2025-08-25",1]
["K0019","FBO4","Früchte-Box Standard 4 KG","2025-08-04",1]
["K0019","FBO6","Früchte-Box Standard 6 KG","2025-08-04",1]
["K0019","FBO4","Früchte-Box Standard 4 KG","2025-08-11",1]
["K0019","FBO6","Früchte-Box Standard 6 KG","2025-08-11",1]
["K0019","FBO4","Früchte-Box Standard 4 KG","2025-08-18",1]
["K0019","FBO6","Früchte-Box Standard 6 KG","2025-08-18",1]
["K0019","FBO4","Früchte-Box Standard 4 KG","2025-08-25",1]
["K0019","FBO6","Früchte-Box Standard 6 KG","2025-08-25",1]
["K0019","RAB","Mengenrabatt ab 2. Box pro Lieferung","Aug. 25",4]
["K0020","FBO4","Früchte-Box Standard 4 KG","2025-08-04",1]
["K0020","FBO4","Früchte-Box Standard 4 KG","2025-08-11",1]
["K0020","FBO4","Früchte-Box Standard 4 KG","2025-08-18",1]
["K0020","FBO4","Früchte-Box Standard 4 KG","2025-08-25",1]
["K0027","FBO4","Früchte-Box Standard 4 KG","2025-08-04",1]
["K0027","FBO4","Früchte-Box Standard 4 KG","2025-08-11",1]
["K0027","FBO4","Früchte-Box Standard 4 KG","2025-08-18",1]
["K0027","FBO4","Früchte-Box Standard 4 KG","2025-08-25",1]
["K0043","FBO4","Früchte-Box Standard 4 KG","2025-08-04",1]
["K0043","FBO4","Früchte-Box Standard 4 KG","2025-08-18",1]
["K0049","FBO6","Früchte-Box Standard 6 KG","2025-08-04",1]
["K0049","FBO6","Früchte-Box Standard 6 KG","2025-08-11",1]
["K0049","FBO6","Früchte-Box Standard 6 KG","2025-08-18",1]
["K0049","FBO6","Früchte-Box Standard 6 KG","2025-08-25",1]
["K0057","BAB5","Bananen-Box 5 KG","2025-08-04",1]
["K0057","FBO5","Früchte-Box Standard 5 KG","2025-08-04",1]
["K0057","BAB5","Bananen-Box 5 KG","2025-08-11",1]
["K0057","FBO5","Früchte-Box Standard 5 KG","2025-08-11",1]
["K0057","BAB5","Bananen-Box 5 KG","2025-08-18",1]
["K0057","FBO5",{"$f":"+(IF(B34=\"\",\"\",VLOOKUP(B34,Boxen,2,0)))","v":"Früchte-Box Standard 5 KG"},"2025-08-18",1]
["K0057","BAB5","Bananen-Box 5 KG","2025-08-25",1]
["K0057","FBO5","Früchte-Box Standard 5 KG","2025-08-25",1]
["K0057","RAB","Mengenrabatt ab 2. Box pro Lieferung","Aug. 25",4]
["K0061","BIO4.","Früchte-Box Bio 4 KG","2025-08-26",2]
["K0061","RAB","Mengenrabatt ab 2. Box pro Lieferung","Aug. 25",1]
["K0062","SAQ","Früchte-Mix Saison, in Ifco, pro KG","2025-08-19",21]
["K0062","LIEF","Lieferung","Aug. 25",1]
["K0064","FBO4","Früchte-Box Standard 4 KG","2025-08-11",1]
["K0064","FBO4","Früchte-Box Standard 4 KG","2025-08-25",1]
["K0067","FBO5","Früchte-Box Standard 5 KG","2025-08-04",1]
["K0067","FBO5","Früchte-Box Standard 5 KG","2025-08-11",1]
["K0067","FBO5","Früchte-Box Standard 5 KG","2025-08-18",1]
["K0067","FBO5","Früchte-Box Standard 5 KG","2025-08-25",1]
["K0082","FBO4","Früchte-Box Standard 4 KG","2025-08-04",1]
["K0082","FBO4","Früchte-Box Standard 4 KG","2025-08-18",1]
["K0085","ALB4","Früchte-Box 4 KG","2025-08-05",1]
["K0085","ALB4","Früchte-Box 4 KG","2025-08-19",1]
["K0085","ALB4","Früchte-Box 4 KG","2025-08-26",1]
["K0088","FBO4","Früchte-Box Standard 4 KG","2025-08-04",1]
["K0088","FBO4","Früchte-Box Standard 4 KG","2025-08-11",1]
["K0088","FBO4","Früchte-Box Standard 4 KG","2025-08-18",2]
["K0088","FBO4","Früchte-Box Standard 4 KG","2025-08-25",2]
["K0088","RAB","Mengenrabatt ab 2. Box pro Lieferung","Aug. 25",2]
["K0091","BIO4","Früchte-Box Bio 4 KG","2025-08-04",1]
["K0091","BIO4","Früchte-Box Bio 4 KG","2025-08-11",1]
["K0091","BIO4","Früchte-Box Bio 4 KG","2025-08-18",1]
["K0091","BIO4","Früchte-Box Bio 4 KG","2025-08-25",1]
["K0097","FBO4","Früchte-Box Standard 4 KG","2025-08-04",1]
["K0097","FBO4","Früchte-Box Standard 4 KG","2025-08-18",1]
[null,null,{"$f":"+(IF(B64=\"\",\"\",VLOOKUP(B64,Boxen,2,0)))","v":""}]
[null,null,""]
[null,null,""]
[null,null,""]
[null,null,""]
[null,null,""]
[null,null,""]
[null,null,""]
[null,null,""]
[null,null,""]
[null,null,""]
[null,null,""]
[null,null,""]
[null,null,""]
[null,null,""]
[null,null,""]
[null,null,""]
[null,null,""]
[null,null,""]
[null,null,""]
[null,null,""]
[null,null,""]
[null,null,""]
[null,null,""]
[null,null,""]
[null,null,""]
[null,null,""]
[null,null,""]
[null,null,""]
[null,null,""]
[null,null,""]
[null,null,""]
[null,null,""]
[null,null,""]
[null,null,""]
[null,null,""]
[null,null,""]
[null,null,""]
[null,null,{"$f":"+(IF(B102=\"\",\"\",VLOOKUP(B102,Boxen,2,0)))","v":""}]
[null,null,""]
[null,null,""]
[null,null,""]
[null,null,""]
[null,null,""]
[null,null,""]
[null,null,""]
[null,null,""]
[null,null,""]
[null,null,""]
[null,null,""]
[null,null,""]
[null,null,""]
[null,null,""]
[null,null,""]
[null,null,""]
[null,null,""]
[null,null,""]
[null,null,""]
[null,null,""]
[null,null,""]
[null,null,""]
[null,null,""]
[null,null,""]
[null,null,""]
[null,null,""]
[null,null,""]
[null,null,""]
[null,null,""]
[null,null,""]
[null,null,""]
[null,null,""]
[null,null,""]
[null,null,""]
[null,null,""]
[null,null,""]
[null,null,""]
[null,null,""]
[null,null,""]
[null,null,""]
[null,null,""]
[null,null,""]
[null,null,""]
[null,null,""]
[null,null,""]
[null,null,""]
[null,null,""]
[null,null,""]
[null,null,""]
[null,null,""]
[null,null,""]
[null,null,""]
[null,null,""]
[null,null,""]
[null,null,""]
[null,null,""]
[null,null,""]
[null,null,""]
[null,null,""]
[null,null,""]
[null,null,""]
[null,null,""]
[null,null,""]
[null,null,{"$f":"+(IF(B166=\"\",\"\",VLOOKUP(B166,Boxen,2,0)))","v":""}]
[null,null,""]
[null,null,""]
[null,null,""]
[null,null,""]
[null,null,""]
[null,null,""]
[null,null,""]
[null,null,""]
[null,null,""]
[null,null,""]
[null,null,""]
[null,null,""]
[null,null,""]
[null,null,""]
[null,null,""]
[null,null,""]
[null,null,""]
[null,null,""]
[null,null,""]
[null,null,""]
[null,null,""]
[null,null,""]
[null,null,""]
[null,null,""]
[null,null,""]
[null,null,""]
[null,null,""]
[null,null,""]
[null,null,""]
[null,null,""]
[null,null,""]
[null,null,""]
[null,null,""]
[null,null,""]
[null,null,""]
[null,null,""]
[null,null,""]
[null,null,""]
[null,null,""]
[null,null,""]
[null,null,""]
[null,null,""]
[null,null,""]
[null,null,""]
[null,null,""]
[null,null,""]
[null,null,""]
[null,null,""]
[null,null,""]
[null,null,""]
[null,null,""]
[null,null,""]
[null,null,""]
[null,null,""]
[null,null,""]
[null,null,""]
[null,null,""]
[null,null,""]
[null,null,""]
[null,null,""]
[null,null,""]
[null,null,""]
[null,null,""]
[null,null,{"$f":"+(IF(B230=\"\",\"\",VLOOKUP(B230,Boxen,2,0)))","v":""}]
[null,null,""]
[null,null,""]
[null,null,""]
[null,null,""]
[null,null,""]
[null,null,""]
[null,null,""]
[null,null,""]
[null,null,""]
[null,null,""]
[null,null,""]
[null,null,""]
[null,null,""]
[null,null,""]
[null,null,""]
[null,null,""]
[null,null,""]
[null,null,""]
[null,null,""]
[null,null,""]
[null,null,""]
[null,null,""]
[null,null,""]
[null,null,""]
[null,null,""]
[null,null,""]
[null,null,""]
[null,null,""]
[null,null,""]
[null,null,""]
[null,null,""]
[null,null,""]
[null,null,""]
[null,null,""]
[null,null,""]
[null,null,""]
[null,null,""]
[null,null,""]
[null,null,""]
[null,null,""]
[null,null,""]
[null,null,""]
[null,null,""]
[null,null,""]
[null,null,""]
[null,null,""]
[null,null,""]
[null,null,""]
[null,null,""]
[null,null,""]
[null,null,""]
[null,null,""]
[null,null,""]
[null,null,""]
[null,null,""]
[null,null,""]
[null,null,""]
[null,null,""]
[null,null,""]
[null,null,""]
[null,null,""]
[null,null,""]
[null,null,""]
[null,null,{"$f":"+(IF(B294=\"\",\"\",VLOOKUP(B294,Boxen,2,0)))","v":""}]
[null,null,""]
[null,null,""]
[null,null,""]
[null,null,""]
[null,null,""]
[null,null,""]
[null,null,""]
[null,null,""]
[null,null,""]
[null,null,""]
[null,null,""]
[null,null,""]
[null,null,""]
[null,null,""]
[null,null,""]
[null,null,""]
[null,null,""]
[null,null,""]
[null,null,""]
[null,null,""]
[null,null,""]
[null,null,""]
[null,null,""]
[null,null,""]
[null,null,""]
[null,null,""]
[null,null,""]
[null,null,""]
[null,null,""]
[null,null,""]
[null,null,""]
[null,null,""]
[null,null,""]
[null,null,""]
[null,null,""]
[null,null,""]
[null,null,""]
[null,null,""]
[null,null,""]
[null,null,""]
[null,null,""]
[null,null,""]
[null,null,""]
[null,null,""]
[null,null,""]
[null,null,""]
[null,null,""]
[null,null,""]
[null,null,""]
[null,null,""]
[null,null,""]
[null,null,""]
[null,null,""]
[null,null,""]
[null,null,""]
[null,null,""]
[null,null,""]
[null,null,""]
[null,null,""]
[null,null,""]
[null,null,""]
[null,null,""]
[null,null,""]
[null,null,{"$f":"+(IF(B358=\"\",\"\",VLOOKUP(B358,Boxen,2,0)))","v":""}]
[null,null,""]
[null,null,""]
[null,null,""]
[null,null,""]
[null,null,""]
[null,null,""]
[null,null,""]
[null,null,""]
[null,null,""]
[null,null,""]
[null,null,""]
[null,null,""]
[null,null,""]
[null,null,""]
[null,null,""]
[null,null,""]
[null,null,""]
[null,null,""]
[null,null,""]
[null,null,""]
[null,null,""]
[null,null,""]
[null,null,""]
[null,null,""]
[null,null,""]
[null,null,""]
[null,null,""]
[null,null,""]
[null,null,""]
[null,null,""]
[null,null,""]
[null,null,""]
[null,null,""]
[null,null,""]
[null,null,""]
[null,null,""]
[null,null,""]
[null,null,""]
[null,null,""]
[null,null,""]
[null,null,""]
[null,null,""]
[null,null,""]
[null,null,""]
[null,null,""]
[null,null,""]
[null,null,""]
[null,null,""]
[null,null,""]
[null,null,""]
[null,null,""]
[null,null,""]
[null,null,""]
[null,null,""]
[null,null,""]
[null,null,""]
[null,null,""]
[null,null,""]
[null,null,""]
[null,null,""]
[null,null,""]
[null,null,""]
[null,null,""]
[null,null,{"$f":"+(IF(B422=\"\",\"\",VLOOKUP(B422,Boxen,2,0)))","v":""}]
[null,null,""]
[null,null,""]
[null,null,""]
[null,null,""]
[null,null,""]
[null,null,""]
[null,null,""]
[null,null,""]
[null,null,""]
[null,null,""]
[null,null,""]
[null,null,""]
[null,null,""]
[null,null,""]
[null,null,""]
[null,null,""]
[null,null,""]
[null,null,""]
[null,null,""]
[null,null,""]
[null,null,""]
[null,null,""]
[null,null,""]
[null,null,""]
[null,null,""]
[null,null,""]
[null,null,""]
[null,null,""]
[null,null,""]
[null,null,""]
[null,null,""]
[null,null,""]
[null,null,""]
[null,null,""]
[null,null,""]
[null,null,""]
[null,null,""]
[null,null,""]
[null,null,""]
[null,null,""]
[null,null,""]
[null,null,""]
[null,null,""]
[null,null,""]
[null,null,""]
[null,null,""]
[null,null,""]
[null,null,""]
[null,null,""]
[null,null,""]
[null,null,""]
[null,null,""]
[null,null,""]
[null,null,""]
[null,null,""]
[null,null,""]
[null,null,""]
[null,null,""]
[null,null,""]
[null,null,""]
[null,null,""]
[null,null,""]
[null,null,""]
[null,null,{"$f":"+(IF(B486=\"\",\"\",VLOOKUP(B486,Boxen,2,0)))","v":""}]
[null,null,""]
[null,null,""]
[null,null,""]
[null,null,""]
[null,null,""]
[null,null,""]
[null,null,""]
[null,null,""]
[null,null,""]
[null,null,""]
[null,null,""]
[null,null,""]
[null,null,""]
[null,null,""]
[null,null,""]
[null,null,""]
[null,null,""]
[null,null,""]
[null,null,""]
[null,null,""]
[null,null,""]
[null,null,""]
[null,null,""]
[null,null,""]
[null,null,""]
[null,null,""]
[null,null,""]
[null,null,""]
[null,null,""]
[null,null,""]
[null,null,""]
[null,null,""]
[null,null,""]
[null,null,""]
[null,null,""]
[null,null,""]
[null,null,""]
[null,null,""]
[null,null,""]
[null,null,""]
[null,null,""]
[null,null,""]
[null,null,""]
[null,null,""]
[null,null,""]
[null,null,""]
[null,null,""]
[null,null,""]
[null,null,""]
[null,null,""]
[null,null,""]
[null,null,""]
[null,null,""]
[null,null,""]
[null,null,""]
[null,null,""]
[null,null,""]
[null,null,""]
[null,null,""]
[null,null,""]
[null,null,""]
[null,null,""]
[null,null,""]
[null,null,{"$f":"+(IF(B550=\"\",\"\",VLOOKUP(B550,Boxen,2,0)))","v":""}]
[null,null,""]
[null,null,""]
[null,null,""]
[null,null,""]
[null,null,""]
[null,null,""]
[null,null,""]
[null,null,""]
[null,null,""]
[null,null,""]
[null,null,""]
[null,null,""]
[null,null,""]
[null,null,""]
[null,null,""]
[null,null,""]
[null,null,""]
[null,null,""]
[null,null,""]
[null,null,""]
[null,null,""]
[null,null,""]
[null,null,""]
[null,null,""]
[null,null,""]
[null,null,""]
[null,null,""]
[null,null,""]
[null,null,""]
[null,null,""]
[null,null,""]
[null,null,""]
[null,null,""]
[null,null,""]
[null,null,""]
[null,null,""]
[null,null,""]
[null,null,""]
[null,null,""]
[null,null,""]
[null,null,""]
[null,null,""]
[null,null,""]
[null,null,""]
[null,null,""]
[null,null,""]
[null,null,""]
[null,null,""]
[null,null,""]
[null,null,""]
[null,null,""]
[null,null,""]
[null,null,""]
[null,null,""]
[null,null,""]
[null,null,""]
[null,null,""]
[null,null,""]
[null,null,""]
[null,null,""]
[null,null,""]
[null,null,""]
[null,null,""]
[null,null,{"$f":"+(IF(B614=\"\",\"\",VLOOKUP(B614,Boxen,2,0)))","v":""}]
[null,null,""]
[null,null,""]
[null,null,""]
[null,null,""]
[null,null,""]
[null,null,""]
[null,null,""]
[null,null,""]
[null,null,""]
[null,null,""]
[null,null,""]
[null,null,""]
[null,null,""]
[null,null,""]
[null,null,""]
[null,null,""]
[null,null,""]
[null,null,""]
[null,null,""]
[null,null,""]
[null,null,""]
[null,null,""]
[null,null,""]
[null,null,""]
[null,null,""]
[null,null,""]
[null,null,""]
[null,null,""]
[null,null,""]
[null,null,""]
[null,null,""]
[null,null,""]
[null,null,""]
[null,null,""]
[null,null,""]
[null,null,""]
[null,null,""]
[null,null,""]
[null,null,""]
[null,null,""]
[null,null,""]
[null,null,""]
[null,null,""]
[null,null,""]
[null,null,""]
[null,null,""]
[null,null,""]
[null,null,""]
[null,null,""]
[null,null,""]
[null,null,""]
[null,null,""]
[null,null,""]
[null,null,""]
[null,null,""]
[null,null,""]
[null,null,""]
[null,null,""]
[null,null,""]
[null,null,""]
[null,null,""]
[null,null,""]
[null,null,""]
[null,null,{"$f":"+(IF(B678=\"\",\"\",VLOOKUP(B678,Boxen,2,0)))","v":""}]
[null,null,""]
[null,null,""]
[null,null,""]
[null,null,""]
[null,null,""]
[null,null,""]
[null,null,""]
[null,null,""]
[null,null,""]
[null,null,""]
[null,null,""]
[null,null,""]
[null,null,""]
[null,null,""]
[null,null,""]
[null,null,""]
[null,null,""]
[null,null,""]
[null,null,""]
[null,null,""]
[null,null,""]
[null,null,""]
[null,null,""]
[null,null,""]
[null,null,""]
[null,null,""]
[null,null,""]
[null,null,""]
[null,null,""]
[null,null,""]
[null,null,""]
[null,null,""]
[null,null,""]
[null,null,""]
[null,null,""]
[null,null,""]
[null,null,""]
[null,null,""]
[null,null,""]
[null,null,""]
[null,null,""]
[null,null,""]
[null,null,""]
[null,null,""]
[null,null,""]
[null,null,""]
[null,null,""]
[null,null,""]
[null,null,""]
[null,null,""]
[null,null,""]
[null,null,""]
[null,null,""]
[null,null,""]
[null,null,""]
[null,null,""]
[null,null,""]
[null,null,""]
[null,null,""]
[null,null,""]
[null,null,""]
[null,null,""]
[null,null,""]
[null,null,{"$f":"+(IF(B742=\"\",\"\",VLOOKUP(B742,Boxen,2,0)))","v":""}]
[null,null,""]
[null,null,""]
[null,null,""]
[null,null,""]
[null,null,""]
[null,null,""]
[null,null,""]
[null,null,""]
[null,null,""]
[null,null,""]
[null,null,""]
[null,null,""]
[null,null,""]
[null,null,""]
[null,null,""]
[null,null,""]
[null,null,""]
[null,null,""]
[null,null,""]
[null,null,""]
[null,null,""]
[null,null,""]
[null,null,""]
[null,null,""]
[null,null,""]
[null,null,""]
[null,null,""]
[null,null,""]
[null,null,""]
[null,null,""]
[null,null,""]
[null,null,""]
[null,null,""]
[null,null,""]
[null,null,""]
[null,null,""]
[null,null,""]
[null,null,""]
[null,null,""]
[null,null,""]
[null,null,""]
[null,null,""]
[null,null,""]
[null,null,""]
[null,null,""]
[null,null,""]
[null,null,""]
[null,null,""]
[null,null,""]
[null,null,""]
[null,null,""]
[null,null,""]
[null,null,""]
[null,null,""]
[null,null,""]
[null,null,""]
[null,null,""]
[null,null,""]
[null,null,""]
[null,null,""]
[null,null,""]
[null,null,""]
[null,null,""]
[null,null,{"$f":"+(IF(B806=\"\",\"\",VLOOKUP(B806,Boxen,2,0)))","v":""}]
[null,null,""]
[null,null,""]
[null,null,""]
[null,null,""]
[null,null,""]
[null,null,""]
[null,null,""]
[null,null,""]
[null,null,""]
[null,null,""]
[null,null,""]
[null,null,""]
[null,null,""]
[null,null,""]
[null,null,""]
[null,null,""]
[null,null,""]
[null,null,""]
[null,null,""]
[null,null,""]
[null,null,""]
[null,null,""]
[null,null,""]
[null,null,""]
[null,null,""]
[null,null,""]
[null,null,""]
[null,null,""]
[null,null,""]
[null,null,""]
[null,null,""]
[null,null,""]
[null,null,""]
[null,null,""]
[null,null,""]
[null,null,""]
[null,null,""]
[null,null,""]
[null,null,""]
[null,null,""]
[null,null,""]
[null,null,""]
[null,null,""]
[null,null,""]
[null,null,""]
[null,null,""]
[null,null,""]
[null,null,""]
[null,null,""]
[null,null,""]
[null,null,""]
[null,null,""]
[null,null,""]
[null,null,""]
[null,null,""]
[null,null,""]
[null,null,""]
[null,null,""]
[null,null,""]
[null,null,""]
[null,null,""]
[null,null,""]
[null,null,""]
[null,null,{"$f":"+(IF(B870=\"\",\"\",VLOOKUP(B870,Boxen,2,0)))","v":""}]
[null,null,""]
[null,null,""]
[null,null,""]
[null,null,""]
[null,null,""]
[null,null,""]
[null,null,""]
[null,null,""]
[null,null,""]
[null,null,""]
[null,null,""]
[null,null,""]
[null,null,""]
[null,null,""]
[null,null,""]
[null,null,""]
[null,null,""]
[null,null,""]
[null,null,""]
[null,null,""]
[null,null,""]
[null,null,""]
[null,null,""]
[null,null,""]
[null,null,""]
[null,null,""]
[null,null,""]
[null,null,""]
[null,null,""]
[null,null,""]
[null,null,""]
[null,null,""]
[null,null,""]
[null,null,""]
[null,null,""]
[null,null,""]
[null,null,""]
[null,null,""]
[null,null,""]
[null,null,""]
[null,null,""]
[null,null,""]
[null,null,""]
[null,null,""]
[null,null,""]
[null,null,""]
[null,null,""]
[null,null,""]
[null,null,""]
[null,null,""]
[null,null,""]
[null,null,""]
[null,null,""]
[null,null,""]
[null,null,""]
[null,null,""]
[null,null,""]
[null,null,""]
[null,null,""]
[null,null,""]
[null,null,""]
[null,null,""]
[null,null,""]
[null,null,{"$f":"+(IF(B934=\"\",\"\",VLOOKUP(B934,Boxen,2,0)))","v":""}]
[null,null,""]
[null,null,""]
[null,null,""]
[null,null,""]
[null,null,""]
[null,null,""]
[null,null,""]
[null,null,""]
[null,null,""]
[null,null,""]
[null,null,""]
[null,null,""]
[null,null,""]
[null,null,""]
[null,null,""]
[null,null,""]
[null,null,""]
[null,null,""]
[null,null,""]
[null,null,""]
[null,null,""]
[null,null,""]
[null,null,""]
[null,null,""]
[null,null,""]
[null,null,""]
[null,null,""]
[null,null,""]
[null,null,""]
[null,null,""]
[null,null,""]
[null,null,""]
[null,null,""]
[null,null,""]
[null,null,""]
[null,null,""]
[null,null,""]
[null,null,""]
[null,null,""]
[null,null,""]
[null,null,""]
[null,null,""]
[null,null,""]
[null,null,""]
[null,null,""]
[null,null,""]
[null,null,""]
[null,null,""]
[null,null,""]
[null,null,""]
[null,null,""]
[null,null,""]
[null,null,""]
[null,null,""]
[null,null,""]
[null,null,""]
[null,null,""]
[null,null,""]
[null,null,""]
[null,null,""]
[null,null,""]
[null,null,""]
[null,null,""]
[null,null,{"$f":"+(IF(B998=\"\",\"\",VLOOKUP(B998,Boxen,2,0)))","v":""}]
[null,null,""]
[null,null,""]
[null,null,""]
[null,null,""]
[null,null,""]
[null,null,""]
[null,null,""]
[null,null,""]
[null,null,""]
[null,null,""]
[null,null,""]
[null,null,""]
[null,null,""]
[null,null,""]
[null,null,""]
[null,null,""]
[null,null,""]
[null,null,""]
[null,null,""]
[null,null,""]
[null,null,""]
[null,null,""]
[null,null,""]
[null,null,""]
[null,null,""]
[null,null,""]
[null,null,""]
[null,null,""]
[null,null,""]
[null,null,""]
[null,null,""]
[null,null,""]
[null,null,""]
[null,null,""]
[null,null,""]
[null,null,""]
[null,null,""]
[null,null,""]
[null,null,""]
[null,null,""]
[null,null,""]
[null,null,""]
[null,null,""]
[null,null,""]
[null,null,""]
[null,null,""]
[null,null,""]
[null,null,""]
[null,null,""]
[null,null,""]
[null,null,""]
[null,null,""]
[null,null,""]
[null,null,""]
[null,null,""]
[null,null,""]
[null,null,""]
[null,null,""]
[null,null,""]
[null,null,""]
[null,null,""]
[null,null,""]
[null,null,""]
[null,null,{"$f":"+(IF(B1062=\"\",\"\",VLOOKUP(B1062,Boxen,2,0)))","v":""}]
[null,null,""]
[null,null,""]
[null,null,""]
[null,null,""]
[null,null,""]
[null,null,""]
[null,null,""]
[null,null,""]
[null,null,""]
[null,null,""]
[null,null,""]
[null,null,""]
[null,null,""]
[null,null,""]
[null,null,""]
[null,null,""]
[null,null,""]
[null,null,""]
[null,null,""]
[null,null,""]
[null,null,""]
[null,null,""]
[null,null,""]
[null,null,""]
[null,null,""]
[null,null,""]
[null,null,""]
[null,null,""]
[null,null,""]
[null,null,""]
[null,null,""]
[null,null,""]
[null,null,""]
[null,null,""]
[null,null,""]
[null,null,""]
[null,null,""]
[null,null,""]
[null,null,""]
[null,null,""]
[null,null,""]
[null,null,""]
[null,null,""]
[null,null,""]
[null,null,""]
[null,null,""]
[null,null,""]
[null,null,""]
[null,null,""]
[null,null,""]
[null,null,""]
[null,null,""]
[null,null,""]
[null,null,""]
[null,null,""]
[null,null,""]
[null,null,""]
[null,null,""]
[null,null,""]
[null,null,""]
[null,null,""]
[null,null,""]
[null,null,""]
[null,null,{"$f":"+(IF(B1126=\"\",\"\",VLOOKUP(B1126,Boxen,2,0)))","v":""}]
[null,null,""]
[null,null,""]
[null,null,""]
[null,null,""]
[null,null,""]
[null,null,""]
[null,null,""]
[null,null,""]
[null,null,""]
[null,null,""]
[null,null,""]
[null,null,""]
[null,null,""]
[null,null,""]
[null,null,""]
[null,null,""]
[null,null,""]
[null,null,""]
[null,null,""]
[null,null,""]
[null,null,""]
[null,null,""]
[null,null,""]
[null,null,""]
[null,null,""]
[null,null,""]
[null,null,""]
[null,null,""]
[null,null,""]
[null,null,""]
[null,null,""]
[null,null,""]
[null,null,""]
[null,null,""]
[null,null,""]
[null,null,""]
[null,null,""]
[null,null,""]
[null,null,""]
[null,null,""]
[null,null,""]
[null,null,""]
[null,null,""]
[null,null,""]
[null,null,""]
[null,null,""]
[null,null,""]
[null,null,""]
[null,null,""]
[null,null,""]
[null,null,""]
[null,null,""]
[null,null,""]
[null,null,""]
[null,null,""]
[null,null,""]
[null,null,""]
[null,null,""]
[null,null,""]
[null,null,""]
[null,null,""]
[null,null,""]
[null,null,""]
[null,null,{"$f":"+(IF(B1190=\"\",\"\",VLOOKUP(B1190,Boxen,2,0)))","v":""}]
[null,null,""]
[null,null,""]
[null,null,""]
[null,null,""]
[null,null,""]
[null,null,""]
[null,null,""]
[null,null,""]
[null,null,""]
[null,null,""]
[null,null,""]
[null,null,""]
[null,null,""]
[null,null,""]
[null,null,""]
[null,null,""]
[null,null,""]
[null,null,""]
[null,null,""]
[null,null,""]
[null,null,""]
[null,null,""]
[null,null,""]
[null,null,""]
[null,null,""]
[null,null,""]
[null,null,""]
[null,null,""]
[null,null,""]
[null,null,""]
[null,null,""]
[null,null,""]
[null,null,""]
[null,null,""]
[null,null,""]
[null,null,""]
[null,null,""]
[null,null,""]
[null,null,""]
[null,null,""]
[null,null,""]
[null,null,""]
[null,null,""]
[null,null,""]
[null,null,""]
[null,null,""]
[null,null,""]
[null,null,""]
[null,null,""]
[null,null,""]
[null,null,""]
[null,null,""]
[null,null,""]
[null,null,""]
[null,null,""]
[null,null,""]
[null,null,""]
[null,null,""]
[null,null,""]
[null,null,""]
[null,null,""]
[null,null,""]
[null,null,""]
[null,null,{"$f":"+(IF(B1254=\"\",\"\",VLOOKUP(B1254,Boxen,2,0)))","v":""}]
[null,null,""]
[null,null,""]
[null,null,""]
[null,null,""]
[null,null,""]
[null,null,""]
[null,null,""]
[null,null,""]
[null,null,""]
[null,null,""]
[null,null,""]
[null,null,""]
[null,null,""]
[null,null,""]

{"sheet":"RG_KD","index":4,"n_rows":7,"n_cols":1,"rows_kept":7,"cut":false,"hidden":false,"merged":[]}
["Hier alle Kundennummern erfassen, die eine Rechnung erhalten im aktuellen Monat"]
["K0011"]
["K0019"]
["K0043"]
["K0049"]
["K0057"]
["K0062"]

{"sheet":"DATEN","index":5,"n_rows":113,"n_cols":7,"rows_kept":113,"cut":false,"hidden":false,"merged":[]}
["Rhythmus"]
[]
[1,"jede Woche"]
[2,"jede zweite Woche"]
[3,"jede dritte Woche"]
[4,"jede vierte Woche"]
[5,"jeden Monat (erster Montag)"]
[6,"jeden Monat (zweiter Montag)"]
[7,"jeden Monat (dritter Montag)"]
[8]
[9,"Test"]
[10,"Lieferdaten definiert"]
[11]
[12]
[13]
[14]
[15,"jede fünfte Woche"]
[16,"jede sechste Woche"]
[17]
[18]
[19]
[20,"auf Abruf"]
[]
[]
[]
["Boxen",null,"Boxen spez erfassen, SAQ, usw."]
[]
["Abo","Bezeichnung","Box","Anz. Pro Lief","KG pro Box","Preis Text","Preis inkl."]
["BIO4.","Früchte-Box Bio 4 KG","Früchte-Box Bio",1,"4 KG","CHF 47.00 inkl. MwSt.",45.5]
["BIO5.","Früchte-Box Bio 5 KG","Früchte-Box Bio",1,"5 KG","CHF 56.00 inkl. MwSt.",56]
["BIO6.","Früchte-Box Bio 6 KG","Früchte-Box Bio",1,"6 KG","CHF 65.00 inkl. MwSt.",65]
["FBO4.","Früchte-Box Standard 4 KG","Früchte-Box Standard",1,"4 KG","CHF 35.00 inkl. MwSt.",35]
["FBO5.","Früchte-Box Standard 5 KG","Früchte-Box Standard",1,"5 KG","CHF 41.00 inkl. MwSt.",41]
["FBO6.","Früchte-Box Standard 6 KG","Früchte-Box Standard",1,"6 KG","CHF 47.00 inkl. MwSt.",47]
["FBO3.","Früchte-Box Standard 3 KG","Früchte-Box Standard",1,"3 KG","CHF 29.00 inkl. MwSt.",29]
["BIO3.","Früchte-Box Bio 3 KG","Früchte-Box Bio",1,"3 KG","CHF 38.00 inkl. MwSt.",38]
["ABO5.","Apfel-Box Standard 5 KG","Apfel-Box Standard",1,"5 KG","CHF 40.00 inkl. MwSt.",40]
["ABO6.","Apfel-Box Standard 6 KG","Apfel-Box Standard",1,"6 KG","CHF 46.00 inkl. MwSt.",46]
["BAB5.","Bananen-Box 5 KG","Bananen-Box",1,"5 KG","CHF 38.00 inkl. MwSt.",38]
["BAB6.","Bananen-Box 6 KG","Bananen-Box",1,"6 KG","CHF 43.00 inkl. MwSt.",43]
["CH4_spez","Früchte-Box Standard 4 KG","Früchte-Box Standard",1,"4 KG","CHF 35.00 inkl. MwSt.",35]
["CH3_5_6","3 Früchte-Boxen (3KG/5KG/6KG)","3 Früchte-Boxen (3KG/5KG/6KG)","3en",null,null,111]
["BOX","Holzbox Kiefer 30x40cm","Holzbox Kiefer 30x40cm","1 Stk.",null,"CHF 10.00 inkl. MwSt.",10]
["RABA","Mengenrabatt ab 2. Box pro Lieferung","Rabatt",null,null,0,-7]
["TX1","alle zwei Wochen geliefert",null,null,null,0,0]
["TX2","10.02. / 24.02. / 10.03. / 24.03. / 7.04. / 22.04. / 5.05. / 19.05. / 2.06. / 16.06. / ",null,null,null,0,0]
["TX3","30.06. / 14.07. / 28.07. / 11.08. / 25.08. / 8.09. / 22.09. / 6.10. / 20.10. / ",null,null,null,0,0]
["LIEF","Lieferung",null,null,null,0,10]
["FBO4","Früchte-Box Standard 4 KG","Früchte-Box Standard",1,"4 KG","CHF 37.00 inkl. MwSt.",37]
["FBO5","Früchte-Box Standard 5 KG","Früchte-Box Standard",1,"5 KG","CHF 42.00 inkl. MwSt.",42]
["FBO6","Früchte-Box Standard 6 KG","Früchte-Box Standard",1,"6 KG","CHF 47.00 inkl. MwSt.",47]
["ABO5","Apfel-Box 5 KG","Apfel-Box",1,"5 KG","CHF 41.00 inkl. MwSt.",41]
["ABO6","Apfel-Box 6 KG","Apfel-Box",1,"6 KG","CHF 46.00 inkl. MwSt.",46]
["BIO4","Früchte-Box Bio 4 KG","Früchte-Box Bio",1,"4 KG","CHF 48.00 inkl. MwSt.",48]
["BIO5","Früchte-Box Bio 5 KG","Früchte-Box Bio",1,"5 KG","CHF 57.00 inkl. MwSt.",57]
["BIO6","Früchte-Box Bio 6 KG","Früchte-Box Bio",1,"6 KG","CHF 66.00 inkl. MwSt.",66]
["BAB5","Bananen-Box 5 KG","Bananen-Box",1,"5 KG","CHF 38.00 inkl. MwSt.",38]
["BAB6","Bananen-Box 6 KG","Bananen-Box",1,"6 KG","CHF 43.00 inkl. MwSt.",43]
["BAS4","Basis-Box 4 KG","Basis-Box",1,"4 KG","CHF 36.00 inkl. MwSt.",36]
["BAS5","Basis-Box 5 KG","Basis-Box",1,"5 KG","CHF 40.00 inkl. MwSt.",40]
["BAS6","Basis-Box 6 KG","Basis-Box",1,"6 KG","CHF 44.00 inkl. MwSt.",44]
["RAB","Mengenrabatt ab 2. Box pro Lieferung","Rabatt",null,null,null,-4]
["RAB9","Vorauszahlung vom 1.02.2023",null,null,null,null,-70]
["RAB20","Rabatt 20% Qualität",null,null,null,null,-9.6]
["FBO4/5/6","3 Früchte-Boxen (4KG/5KG/6KG)","3 Früchte-Boxen (4KG/5KG/6KG)","3en",null,null,118]
["RAB99","Spezialrabatt",null,null,null,null,-5]
["RAB50","Rabatt 50% falsche Bananen (NON-BIO)",null,null,null,null,-28]
["BAB4.","Bananen-Box 4 KG","Bananen-Box",1,"4 KG","CHF 33.00 inkl. MwSt.",33]
["BAB4","Bananen-Box 4 KG","Bananen-Box",1,"4 KG","CHF 33.00 inkl. MwSt.",33]
["BAS4.","Gourmet-Box 4 KG","Gourmet-Box",1,"4 KG","CHF 40.00 inkl. MwSt.",40]
["RABL","Rabatt verspätete Lieferung",null,null,null,null,-10]
["RAB10","Rabatt 10% Qualität",null,null,null,null,-9.4]
["RAB100","Rabatt 100% (Fehllieferung)","x",null,null,null,-37]
["OKI4","Früchte-Box 4 KG (ohne Orangen)","Früchte-Box (ohne Orangen)",1,"4 KG","CHF 37.00 inkl. MwSt.",37]
["OKI5","Früchte-Box 5 KG (ohne Clementinen)","Früchte-Box (ohne Clementinen)",1,"5 KG","CHF 42.00 inkl. MwSt.",42]
["OKI6","Früchte-Box 6 KG (Carbagas)","Früchte-Box (Carbagas)",1,"6 KG","CHF 47.00 inkl. MwSt.",47]
["ALB4","Früchte-Box 4 KG","Früchte-Box",1,"4 KG","CHF 37.00 inkl. MwSt.",37]
["FBO2","Früchte-Box Standard 2 KG","Früchte-Box Standard",1,"2 KG","CHF 28.50 inkl. MwSt.",28.5]
["RAB30","Rabatt 30% Qualität",null,null,null,null,-14.4]
["RAB20B","Rabatt 20% Qualität",null,null,null,null,-26.2]
["RAB20C","Rabatt 20% Qualität",null,null,null,null,-7.4]
["ABO4","Apfel-Box 4 KG","Apfel-Box",1,"4 KG","CHF 36.00 inkl. MwSt.",36]
["RAB10","Rabatt 10% Qualität",null,null,null,null,-3.7]
["IND1","Früchte-Box 4 KG individualisiert","Früchte-Box 4 KG individualisiert",1,"4 KG","CHF 37.00 inkl. MwSt.",37]
["IND2","Früchte-Box 5 KG individualisiert","Früchte-Box 5 KG individualisiert",1,"5 KG","CHF 40.00 inkl. MwSt.",40]
["IND3","Früchte-Box 6 KG individualisiert","Früchte-Box 6 KG individualisiert",1,"6 KG","CHF 47.00 inkl. MwSt.",47]
["IND4","Früchte-Box 4 KG individualisiert","Früchte-Box 4 KG individualisiert",1,"4 KG","CHF 42.00 inkl. MwSt.",42]
["IND5","Früchte-Box 4 KG individualisiert","Früchte-Box 4 KG individualisiert",1,"4 KG","CHF 42.00 inkl. MwSt.",42]
["IND6","Früchte-Box 5 KG individualisiert","Früchte-Box 5 KG individualisiert",1,"5 KG","CHF 47.00 inkl. MwSt.",47]
["TX4","3.11. / 17.11. / 1.12. / 15.12.2025"]
["ABI","Äpfel BIO, in Ifco, pro KG","Äpfel BIO, in Ifco, pro KG",null,null,null,8.8000000000000007]
["SAQ","Früchte-Mix Saison, in Ifco, pro KG","Früchte-Mix Saison, in Ifco, pro KG",null,null,null,5]
["BBI6","Bananen-Box BIO 6 KG","Bananen-Box BIO",1,"6 KG","CHF 56.00 inkl. MwSt.",56]
["BBI7","Bananen-Box BIO 7 KG","Bananen-Box BIO",1,"7 KG","CHF 62.00 inkl. MwSt.",62]
["ABO7","Apfel-Box 7 KG","Apfel-Box",1,"7 KG","CHF 51.00 inkl. MwSt.",51]
["IND3_5","Früchte-Box 5 KG Spezial","Früchte-Box Spezial",1,"5 KG","CHF 42.00 inkl. MwSt.",42]
["BBI5","Bananen-Box BIO 5 KG","Bananen-Box BIO",1,"5 KG","CHF 50.00 inkl. MwSt.",50]
["BBI4","Bananen-Box BIO 4 KG","Bananen-Box BIO",1,"4 KG","CHF 44.00 inkl. MwSt.",44]
["RAB10A","Rabatt 10% Qualität",null,null,null,null,-3.7]
["RAB10B","Rabatt 10% Qualität",null,null,null,null,-4.7]
["RAB10C","Rabatt 10% Qualität",null,null,null,null,-12.6]
["IND7","Früchte-Box 4 KG individualisiert","Früchte-Box 4 KG individualisiert",1,"4 KG","CHF 42.00 inkl. MwSt.",42]
["IND8","Früchte-Box 4 KG individualisiert","Früchte-Box 4 KG individualisiert",1,"4 KG","CHF 42.00 inkl. MwSt.",42]
["IND9","Früchte-Box 4 KG individualisiert","Früchte-Box 4 KG individualisiert",1,"4 KG","CHF 42.00 inkl. MwSt.",42]
["IND10","Früchte-Box 4 KG individualisiert","Früchte-Box 4 KG individualisiert",1,"4 KG","CHF 42.00 inkl. MwSt.",42]
["IND11","Früchte-Box 4 KG individualisiert","Früchte-Box 4 KG individualisiert",1,"4 KG","CHF 42.00 inkl. MwSt.",42]
["IND12","Früchte-Box 4 KG individualisiert","Früchte-Box 4 KG individualisiert",1,"4 KG","CHF 42.00 inkl. MwSt.",42]
["IND13","Früchte-Box 4 KG individualisiert","Früchte-Box 4 KG individualisiert",1,"4 KG","CHF 42.00 inkl. MwSt.",42]
["IND14","Früchte-Box 4 KG individualisiert","Früchte-Box 4 KG individualisiert",1,"4 KG","CHF 42.00 inkl. MwSt.",42]
["IND15","Früchte-Box 4 KG individualisiert","Früchte-Box 4 KG individualisiert",1,"4 KG","CHF 42.00 inkl. MwSt.",42]
["ABI4","Apfel-Box BIO 4 KG","Apfel-Box BIO",1,"4 KG","CHF 53.00 inkl. MwSt.",53]
["ABI5","Apfel-Box BIO 5 KG","Apfel-Box BIO",1,"5 KG","CHF 63.00 inkl. MwSt.",63]
["ABI6","Apfel-Box BIO 6 KG","Apfel-Box BIO",1,"6 KG","CHF 73.00 inkl. MwSt.",73]